{"text_format":"3","workbook":"xlsx","n_sheets":12,"sheets":["Magna Carta","Datalog","Data Crawler","Managementsets","Produktkonfigurator","Produktlog","Preise&ProduktAuswahl","Warenkorb","Angebot","AddSpecific","BspPJ","Vorlage"],"not_rendered":{"images":2,"macros":1},"read":"whole","date_system":"1900"}

{"sheet":"Magna Carta","index":0,"n_rows":20,"n_cols":4,"rows_kept":20}
[]
[]
[]
[null,"Mixed Philosophy",null,"Notizhandbuch"]
[null,"Homebase",null,"Notizen"]
[]
[]
[null,"Geld"]
[null,"Liebe"]
[null,"Sport"]
[null,"3-pillars"]
{"$rows_empty":8}
[null,null,"      "]

{"sheet":"Datalog","index":1,"n_rows":1,"n_cols":8,"rows_kept":1}
[null,"Zelle-y","Zelle-x","Folderbase","Filebase","Listindex","Filepath","Folderbasepath"]

{"sheet":"Data Crawler","index":2,"n_rows":7,"n_cols":10,"rows_kept":7}
[null,"Zelle-y","Zelle-x","Folderbase","Filebase","Listindex","Filepath","Folderbasepath","Target:","C:\\Users\\Markus Schmid\\Desktop\\Mixed Philosophy"]
[1,null,null,"000_Homebase","0_0_18_E-PBC-WUSBT-Base",null,"C:\\Users\\Markus Schmid\\Desktop\\Mixed Philosophy\\000_Homebase\\0_0_18_E-PBC-WUSBT-Base.xlsm","C:\\Users\\Markus Schmid\\Desktop\\Mixed Philosophy\\000_Homebase"]
[2,null,null,"000_Homebase","9_Tails",null,"C:\\Users\\Markus Schmid\\Desktop\\Mixed Philosophy\\000_Homebase\\9_Tails.xlsm","C:\\Users\\Markus Schmid\\Desktop\\Mixed Philosophy\\000_Homebase"]
[3,null,null,"000_Homebase","KPI_List",null,"C:\\Users\\Markus Schmid\\Desktop\\Mixed Philosophy\\000_Homebase\\KPI_List.xlsm","C:\\Users\\Markus Schmid\\Desktop\\Mixed Philosophy\\000_Homebase"]
[4,null,null,"000_Homebase","Schirm",null,"C:\\Users\\Markus Schmid\\Desktop\\Mixed Philosophy\\000_Homebase\\Schirm.txt","C:\\Users\\Markus Schmid\\Desktop\\Mixed Philosophy\\000_Homebase"]
[5,null,null,"000_Homebase","Sportlog",null,"C:\\Users\\Markus Schmid\\Desktop\\Mixed Philosophy\\000_Homebase\\Sportlog.txt","C:\\Users\\Markus Schmid\\Desktop\\Mixed Philosophy\\000_Homebase"]
[6,null,null,"00_Methode","1. Check Login, Registrate, Pin, Au",null,"C:\\Users\\Markus Schmid\\Desktop\\Mixed Philosophy\\00_Methode\\1. Check Login, Registrate, Pin, Au.txt","C:\\Users\\Markus Schmid\\Desktop\\Mixed Philosophy\\00_Methode"]

{"sheet":"Managementsets","index":3,"n_rows":30,"n_cols":4,"rows_kept":30}
["Id","Managementset","File","Pfad"]
[1,"Lean Management I","Wertorientierung (Value)","C:\\Hier ist der Dateipfad bspw. aus Datacrawler kopierbar oder manuel einzufügen"]
[1,null,"Verschwendungsminimierung (Muda)","C:\\Hier ist der Dateipfad bspw. aus Datacrawler kopierbar oder manuel einzufügen"]
[1,null,"Flussorientierung (Flow)","C:\\Hier ist der Dateipfad bspw. aus Datacrawler kopierbar oder manuel einzufügen"]
[1,null,"Pull-Prinzip (Pull)","C:\\Hier ist der Dateipfad bspw. aus Datacrawler kopierbar oder manuel einzufügen"]
[1,null,"Kundenorientierung (Customer Value)","C:\\Hier ist der Dateipfad bspw. aus Datacrawler kopierbar oder manuel einzufügen"]
[1,null,"Perfektionierung (Continuous Improvement - Kaizen)","C:\\Hier ist der Dateipfad bspw. aus Datacrawler kopierbar oder manuel einzufügen"]
[1,null,"Eindeutige Verantwortlichkeiten (Single Minute Exchange of Die - SMED)","C:\\Hier ist der Dateipfad bspw. aus Datacrawler kopierbar oder manuel einzufügen"]
[1,null,"Mitarbeiterbeteiligung und -entwicklung","C:\\Hier ist der Dateipfad bspw. aus Datacrawler kopierbar oder manuel einzufügen"]
[1,null,"Visualisierung (Visual Management)","C:\\Hier ist der Dateipfad bspw. aus Datacrawler kopierbar oder manuel einzufügen"]
[1,null,"Fehlervermeidung (Jidoka)","C:\\Hier ist der Dateipfad bspw. aus Datacrawler kopierbar oder manuel einzufügen"]
[1,null,"Standardisierung","C:\\Hier ist der Dateipfad bspw. aus Datacrawler kopierbar oder manuel einzufügen"]
[1,null,"Lieferantenintegration","C:\\Hier ist der Dateipfad bspw. aus Datacrawler kopierbar oder manuel einzufügen"]
[2,"Six Sigma I","DMAIC: Define, Measure, Analyze, Improve, Control","C:\\Hier ist der Dateipfad bspw. aus Datacrawler kopierbar oder manuel einzufügen"]
[2,null,"Prozessfähigkeitsindex (Cp):","C:\\Hier ist der Dateipfad bspw. aus Datacrawler kopierbar oder manuel einzufügen"]
[2,null,"Prozessleistungsfähigkeitsindex (Cpk):","C:\\Hier ist der Dateipfad bspw. aus Datacrawler kopierbar oder manuel einzufügen"]
[2,null,"SIPOC: Suppliers, Inputs, Process, Outputs, Customers","C:\\Hier ist der Dateipfad bspw. aus Datacrawler kopierbar oder manuel einzufügen"]
[2,null,"Statistische Prozessregelung (SPC):","C:\\Hier ist der Dateipfad bspw. aus Datacrawler kopierbar oder manuel einzufügen"]
[2,null,"Pareto-Analyse:","C:\\Hier ist der Dateipfad bspw. aus Datacrawler kopierbar oder manuel einzufügen"]
[2,null,"Ishikawa-Diagramm (Fischgrätendiagramm):","C:\\Hier ist der Dateipfad bspw. aus Datacrawler kopierbar oder manuel einzufügen"]
[2,null,"FMEA: Failure Mode and Effects Analysis","C:\\Hier ist der Dateipfad bspw. aus Datacrawler kopierbar oder manuel einzufügen"]
[2,null,"CTQ: Critical to Quality","C:\\Hier ist der Dateipfad bspw. aus Datacrawler kopierbar oder manuel einzufügen"]
[2,null,"Black Belt, Green Belt, Yellow Belt: Qualifikationsstufen für Six-Sigma-Experten","C:\\Hier ist der Dateipfad bspw. aus Datacrawler kopierbar oder manuel einzufügen"]
[2,null,"Kano-Modell: Analyse von Kundenerwartungen","C:\\Hier ist der Dateipfad bspw. aus Datacrawler kopierbar oder manuel einzufügen"]
[2,null,"Normalverteilung (Gauß-Verteilung):","C:\\Hier ist der Dateipfad bspw. aus Datacrawler kopierbar oder manuel einzufügen"]
[2,null,"Taktzeit:","C:\\Hier ist der Dateipfad bspw. aus Datacrawler kopierbar oder manuel einzufügen"]
[2,null,"Design for Six Sigma (DFSS):","C:\\Hier ist der Dateipfad bspw. aus Datacrawler kopierbar oder manuel einzufügen"]
[2,null,"Muda, Mura, Muri: Japanische Begriffe für Verschwendung, Unebenheit und Überlastung","C:\\Hier ist der Dateipfad bspw. aus Datacrawler kopierbar oder manuel einzufügen"]
[2,null,"CTP: Critical to Process","C:\\Hier ist der Dateipfad bspw. aus Datacrawler kopierbar oder manuel einzufügen"]
[2,null,"SIPOV: Suppliers, Inputs, Process, Outputs, Verifications (V)","C:\\Hier ist der Dateipfad bspw. aus Datacrawler kopierbar oder manuel einzufügen"]

{"sheet":"Produktkonfigurator","index":4,"n_rows":71,"n_cols":13,"rows_kept":71}
[null,"UID","ID","ID","ID","ID","Struktur","Beschreibung","Preis","Typ","Website","Youtube","Sonstiges"]
[1,"1..",1,{"$nulls":3},"Produkte"]
[null,"1.1.",null,1,null,null,"Prozessor-ID - pauschal Gebühr","Die Prozessor-ID beschreibt für spezielle Lizenz Modelle, die eindeutige Entität auf die eine Lizenz zertifiziert werden kann. Insbesondere bei größeren Projekten und bestimmten Sicherheitsbedingungen kann dies ein guter Lösungsansatz sein. So können auch mehrere eindeutige Identifizierungsnummern erhoben werden, um diese beispielsweise auch selbst zu registrieren.",{"v":5,"d":"€5.00"},3,"https://wasbt.com/VBA-Downloads/","https://www.youtube.com/watch?v=98z521DFIhs"]
[null,"1.2.",null,2,null,null,"Digitale Lernumgebung - pauschal Gebühr","Die Lernplattform ist eine Subvention an Schüler, Studenten, Forschern und allen die mit Wissensmanagement mehr erreichen möchten. Sie beinhaltet Funktionalitäten die es erleichtern, die Gesamtheit eines Themas oder Forschungsbereichs zu erfassen oder/und weiterzubearbeiten. Der Vorteil gegenüber handschriftlicher Recherche sind besonders die digitalen Möglichkeiten. Ein erneutes Anordnen erfasster Strukturen ist bspw. kinderleicht.",{"v":5,"d":"€5.00"},3,"https://wasbt.com/VBA-Downloads/","https://www.youtube.com/watch?v=Q1_kTIU5Wzc"]
[null,"1.3.",null,3,null,null,"Fokus Zentralisierung - pauschal Gebühr","Mit einer Zentralisierung von Inhaltslisten, kann der Fokus auf das Gesamte bekanntlich verbessert werden. Nicht nur aus einer thematisch spezifizierte digitalen Lernumgebung können Ihre Inhaltsliste manuell übertragen werden, es können auch Fokussierungen vorbereitet werden. Ein strukturelles Arbeiten von Haupt- zu Unterthemen hilft unerledigten Aufgaben nach Prioritäten zu ordnen und entsprechend abzuarbeiten. So bleibt man konzentrierter und verhindert aufkommenden Stress.",{"v":5,"d":"€5.00"},3,"https://wasbt.com/VBA-Downloads/","https://www.youtube.com/watch?v=tm0IDPB4W_A"]
[null,"1.4.",null,4,null,null,"Kanban Scrum small - pauschal Gebühr","Kanban-Boards helfen allen, sich auf die Fertigstellung der aktuellen Arbeit zu konzentrieren, bevor sie mit einer neuen Aufgabe beginnen. Kanban_Scrum_small.xlsm unterstützt und hilft bei der Erreichung von Zielen, bedingte Durchläufe und bei der Verteilung von Kapazitäten und Aufgaben.",{"v":5,"d":"€5.00"},3,"https://wasbt.com/VBA-Downloads/","https://www.youtube.com/watch?v=rwBvCNtKWI8"]
[null,"1.5.",null,5,null,null,"Process Modeller - pauschal Gebühr","Die Business Process Model and Notation ist eine grafische Spezifikationssprache in der Wirtschaftsinformatik und im Prozessmanagement. Eine Tabellarische Modellierung komplexerer Prozesse ist bisweilen nur manuell möglich. Der Process_Modeller.xlsm verfügt über die Funktionalität aus einer textuellen Beschreibung bzw. tabellarischen Modellierung, Modelle zu generieren und kann sie individuell formatieren, transponieren, transferieren uvm.",{"v":5,"d":"€5.00"},3,"https://wasbt.com/VBA-Downloads/","https://www.youtube.com/watch?v=zXLDU8SUkxQ"]
[null,"1.6.",null,6,null,null,"Swimlane Elaborator - pauschal Gebühr","Unter Swimlane_Elaboration wird in der Prozess der vertieften Informationsverarbeitung aus dem Gehirn oder einer synthetischen Quelle verstanden, durch welches neu erworbenes Wissen in die bereits bestehenden Strukturen integriert werden können. Eine Swimlaneliste konsolidiert dabei zusätzlich Planungsparameter.",{"v":5,"d":"€5.00"},3,"https://wasbt.com/VBA-Downloads/","https://www.youtube.com/watch?v=RqKjbTNG3OA"]
[null,"1.7.",null,7,null,null,"MindMap Modeller - pauschal Gebühr","Die Mindmap beschreibt eine geprägte kognitive Technik, die man z. B. zum Erschließen und visuellen Darstellen eines Themengebietes, zum Planen oder für Mitschriften nutzen kann. In Kombination sind zwei Modellarten möglich.",{"v":5,"d":"€5.00"},3,"https://wasbt.com/VBA-Downloads/","https://www.youtube.com/watch?v=KBHwqNjd6vA"]
[null,"1.8.",null,8,null,null,"Direct Memorandum - pauschal Gebühr","Ein Denkarium oder Pensieve ist etwas in der frühere Erlebnisse und Erinnerungen abgespeichert und später wieder angesehen werden können. Das Direct_Memorandum.xlsm wurde entwickelt um die Datenstruktur eines Computersystems beliebig darzustellen. Durch Hyperlinks kann man direkt darauf zugreifen und weitere Features ermöglichen Datenlisten zu erstellen oder die Analysen bspw. zu duplizieren.",{"v":5,"d":"€5.00"},3,"https://wasbt.com/VBA-Downloads/","https://www.youtube.com/watch?v=2ucPhnjp_mo"]
[null,"1.9.",null,9,null,null,"Fileread Translator - pauschal Gebühr","Der Fileread_Translator besitzt drei Hauptfunktionen: 1. Datentypen filtern, auflisten und hyperlinken 2. Textanalyse und listen in Groß-und Klein geschriebenen Wörter 3. Übersetzung in 108 Sprachen von Listen und Excel Dateien. Eine Autotranslation von Texten in der Zwischenablage analysiert zusätzlich Sätze und übersetzt diese zeilenweise.",{"v":5,"d":"€5.00"},3,"https://wasbt.com/VBA-Downloads/","https://www.youtube.com/watch?v=M0h0fj7lljk"]
[null,"1.10.",null,11,null,null,"Magna_Carta_Terminal_Sets_Manager - pauschal Gebühr","Das als eines der frühesten Entwicklungen einst verloren geglaubte Magna Carte baut auf Grundprinzipien der Verbindung von Datenassets, Quellen und Visualisieren auf. Unterstützt von Data Crawling Technologien, wird das Durchsuchen und Extrahieren von Daten aus verschiedenen Quellen ermöglicht. Seitenweise können Magna Carta Einträge zwischengespeichert, mit der Data Crawling Technologie angereichert und Reverse Engineered werden. Die Verwaltung von Terminalsets, erleichtert das Managen von Endpunkten oder Schnittstellen in einem Netzwerk oder System.",{"v":5,"d":"€5.00"},3,"https://wasbt.com/VBA-Downloads/"]
[null,"1.11.",null,12,null,null,"Produktkonfigurations Manager - pauschal Gebühr","Ein \"Produktkonfigurations-Manager\" ist in der Regel eine Software oder ein System, das die Konfiguration von Produkten in einem Unternehmen verwaltet. Diese Art von Tool wird oft in Unternehmen eingesetzt, die komplexe Produkte anbieten, die aus verschiedenen Baugruppen, Optionen und Varianten bestehen. Produktlogs können gespeichert und wieder geladen werden. So ist es möglich mehrere Produktsets zu verwalten. Erleichtert wird damit: Variantenmanagement, Stücklistenverwaltung, Konfliktmanagement, PReiskalkulation, Angebotsmanagement in Form einer stets erneuerbaren Auswahl-Preisliste und die Integration mit anderen Systemen (ERP, CRM, PLM) um einen durchgängen Informationsfluss sicherzustellen.",{"v":5,"d":"€5.00"},3,"https://wasbt.com/VBA-Downloads/"]
[null,"1.12.",null,13,null,null,"Preis Bestellung Produktmarktplattform - pauschal Gebühr","Die Marktplattform in Excel ermöglicht es Verkäufern Ihre Produkte anbieten zu ikönnen. Festpreise, Rabatte oder Stückzahländerungen haben kalkulatorischen Einfluss auf die Preisbildung. Der Bestellprozess ist vielseitig unterstützt, von Warenkorb, zu konkreten Angeboten, bis hin zu Kundenspezifischer Auftragsformulierung.",{"v":5,"d":"€5.00"},3,"https://wasbt.com/VBA-Downloads/"]
[null,"1.13.",null,14,null,null,"All-in-One Business Product Orchestrator - pauschal Gebühr","Der All-in-One Business Product Orchestrator vereinigt alle Funktionalitäten von Magna_Carta_Terminal_Sets_Manager, Produktkonfigurations Manager und Preis Bestellung Produktmarktplattform. Diese Fusion reduziert die manuellen Bearbeitungsschritte für holistische Abbildungen von Realitäten, Systemen oder Sonstigem. Lesen Sie die oben genannten Einheiten um sich eine Vorstellung von diesem Orchestrator machen zu können.",{"v":5,"d":"€5.00"},3,"https://wasbt.com/VBA-Downloads/"]
[null,"1.11.",null,15,null,null,"Personal Knowledge Manager - pauschal Gebühr","Die Fusion des Personal Knowledge Managers mit dem Lebenslauf bietet eine nahtlose Integration von beruflichen Kompetenzen und persönlichem Wissensmanagement. Diese innovative Verbindung ermöglicht es, nicht nur berufliche Erfahrungen und Qualifikationen darzustellen, sondern auch persönliche Entwicklungen und erworbenes Wissen effektiv zu präsentieren.",{"v":5,"d":"€5.00"},3,"https://wasbt.com/VBA-Downloads/"]
[null,"2..",2,{"$nulls":3},"Sicherheit"]
[null,"2.1.",null,1,null,null,"Datenquellenpasswortschutz","Ein Verschlüsselungsprogramm, schützt Ihre Datei vor unbefugten Zugriff oder vor Einbruch auf geschäftsrelevante Informationen in Ihren Dateien. Das Passwort kann bei uns hinterlegt werden oder selbst frei gewählt werden. Wir bereiten unsere Lieferung fertig geschützt vor Übergang und Transfer vor, sodass von Anfang an, Sicherheit gewährleistet wird.",{"v":4,"d":"4.00 €"},3]
[null,"2.2.",null,2,null,null,"Kommunikationsverschlüsselung","Spezielle Entwicklungen bedürfen heutzutage einer Verschlüsselung von E-Mail-Nachrichten oder anderer textueller Kommunikationswege. Wir entwickelten eine Kombination aus Caesar, Vigenère und polyalphabetischer Substitution zur Verschlüsselung und Entschlüsselung von Nachrichten.",{"v":4,"d":"4.00 €"},3]
[null,"2.3.",null,3,null,null,"Prozessor-ID-Schutz","Registrativ kann ein Computer an der Prozessor-ID eindeutig identifiziert werden. Sie gilt als eine Art Ausweisdokument für Instanzen oder Lizensierte Kunden und deren Personal. Die Prozessor-ID bietet dahingehend Schutz, dass die Technologien nur auf diesen registrierten Computern ausgeführt werden können. Die Prozessor-ID ist einmalig und kann in den Quellcode als unnachgibige Bedingung eingebaut werden.",{"v":4,"d":"4.00 €"},3]
[null,"2.4.",null,4,null,null,"Tabellenschutz","Tabellenschutz ist eine Funktion in Tabellenkalkulationsprogrammen wie Microsoft Excel, die es ermöglicht, Zellen oder Bereiche vor unautorisiertem Zugriff oder Änderungen zu schützen, indem Passwörter oder andere Sicherheitsmaßnahmen festgelegt werden.",{"v":4,"d":"4.00 €"},3]
[null,"2.5.",null,5,null,null,"Bearbeitungsschutz","Der Bearbeitungsschutz bezieht sich auf die Einschränkung oder Verhinderung der Bearbeitung von Dokumenten, Dateien oder anderen digitalen Inhalten, um die Integrität, Sicherheit oder bestimmte Genehmigungsprozesse zu gewährleisten. Dies kann durch Passwörter, Zugriffsbeschränkungen oder andere Sicherheitsmechanismen implementiert werden.",{"v":4,"d":"4.00 €"},3]
[null,"2.6.",null,6,null,null,"Sichtbarkeitsschutz","Der  \"Sichtbarkeitsschutz\" bezieht sich auf Maßnahmen, die ergriffen werden, um die Sichtbarkeit oder den Zugriff auf bestimmte Informationen oder Ressourcen zu beschränken. Dies kann durch Zugriffsrechte, Verschlüsselung oder andere Sicherheitsmechanismen erfolgen, um sicherzustellen, dass nur autorisierte Benutzer oder Systeme die Informationen sehen oder darauf zugreifen können. Sichtbarkeitsschutz ist eine wichtige Komponente in der Informationssicherheit, um sensible Daten vor unbefugtem Zugriff zu schützen.",{"v":4,"d":"4.00 €"},3]
[null,"2.7.",null,7,null,null,"Schreibschutz","Der Schreibschutz bezeichnet eine Sicherheitsmaßnahme, die verhindert, dass Daten, Dateien oder Dokumente bearbeitet oder verändert werden können. Durch das Aktivieren des Schreibschutzes können Inhalte vor versehentlichen oder unbefugten Änderungen geschützt werden. Diese Funktion wird häufig durch das Festlegen von Berechtigungen, Kennwörtern oder anderen Mechanismen implementiert, um die Integrität und Sicherheit von Informationen zu gewährleisten.",{"v":4,"d":"4.00 €"},3]
[null,"2.8.",null,8,null,null,"Projektschutz","In VBA-Technologien können Projektschutzmaßnahmen durch die Verwendung von Passwörtern, Verschlüsselung und Zugriffssteuerungen implementiert werden, um den Quellcode, Makros oder andere kritische Elemente vor unbefugtem Zugriff oder Änderungen zu schützen.",{"v":4,"d":"4.00 €"},3]
[null,"2.8.1",null,null,1,null,"Startsequenz","In VBA kann der Startsequenzschutz durch die Implementierung von Maßnahmen wie Passwörtern, Verschlüsselung oder anderen Sicherheitsmechanismen erfolgen, um sicherzustellen, dass der Start und die Ausführung von VBA-Makros oder Anwendungen nur von autorisierten Benutzern oder in sicheren Umgebungen erfolgen können.",{"v":10,"d":"10.00 €"},3]
[null,"2.8.2",null,null,2,null,"Endsequenz","In VBA für Excel kann der Endsequenzschutz durch die Implementierung von Sicherheitsmaßnahmen wie Passwörtern und Zugriffssteuerungen erfolgen, um sicherzustellen, dass nach dem Ausführen von Makros oder Anwendungen keine unautorisierten Änderungen vorgenommen werden können oder die Datei nicht ohne entsprechende Berechtigungen gespeichert wird.",{"v":10,"d":"10.00 €"},3]
[null,"2.8.3",null,null,3,null,"Quellcodeschutz","Der Quellcodeschutz in VBA (Visual Basic for Applications) bezieht sich auf Maßnahmen, die ergriffen werden, um den Quellcode von Makros oder Anwendungen vor unautorisiertem Zugriff, Anzeigen oder Änderungen zu schützen. Dies kann durch die Verwendung von Passwörtern, Verschlüsselungstechniken oder anderen Sicherheitsmechanismen erreicht werden, um sicherzustellen, dass nur berechtigte Benutzer Zugang zum VBA-Code haben und diesen nicht unerlaubt modifizieren können.",{"v":15,"d":"15.00 €"},3]
[null,"2.9.",null,9,null,null,"Onlineschutz","Der Begriff \"Onlineschutz\" bezieht sich auf Maßnahmen, die ergriffen werden, um Benutzer, Daten und Systeme vor Sicherheitsrisiken im Online-Umfeld zu schützen. Dazu gehören unter anderem: Serversicherheitsabfragen, Verschlüsselung und Entcryption. Auch die Aktualität der Basisdateien können dabei eine Rolle spielen.",{"v":15,"d":"15.00 €"},3]
[null,"2.10.",null,10,null,null,"Loginschutz ","Der Loginschutz ist eine Sicherheitsmaßnahme, die darauf abzielt, den Zugriff auf ein System oder eine Anwendung durch die Implementierung von Authentifizierungsmechanismen wie Benutzername und Passwort zu sichern, um unbefugten Zugang zu verhindern und die Integrität von Benutzerkonten zu schützen.",{"v":15,"d":"15.00 €"},3]
[null,"2.10.1",null,null,1,null,"Sichtbare Passworteingabe","Der Loginschutz mit sichtbarer Passworteingabe ist eine Sicherheitsmaßnahme, die darauf abzielt, den Zugriff auf ein System oder eine Anwendung durch die Implementierung von Authentifizierungsmechanismen wie Benutzername und Passwort zu sichern, um unbefugten Zugang zu verhindern und die Integrität von Benutzerkonten zu schützen. Die Sichtbarkeit der Passworteingabe ist dabei irrelevant in Sachen Sicherheit, da Sie von Dritten nicht gesehen werden bzw. gesehen werden darf.",{"v":20,"d":"20.00 €"},3]
[null,"2.10.2",null,null,2,null,"Versteckte Passworteingabe","Der Loginschutz mit versteckter Passworteingabe ist eine Sicherheitsmaßnahme, die darauf abzielt, den Zugriff auf ein System oder eine Anwendung durch die Implementierung von Authentifizierungsmechanismen wie Benutzername und Passwort zu sichern, um unbefugten Zugang zu verhindern und die Integrität von Benutzerkonten zu schützen. Die Versteckte Passworteingabe ist dabei relevant in Sachen Sicherheit, da Sie von Dritten  gesehen werden kann bzw. nicht gesehen werden darf.",{"v":20,"d":"20.00 €"},3]
[null,"2.10.3",null,null,3,null,"Interne Accountabfrage","Die interne Accountabfrage von Benutzerdaten und Passwörtern ist ein sicherheitsrelevanter Prozess, der es ermöglicht, die Identität von Benutzern zu überprüfen und sicherzustellen, dass nur autorisierte Personen auf ein System oder eine Anwendung zugreifen können.",{"v":10,"d":"10.00 €"},3]
[null,"2.10.4",null,null,4,null,"Externe Accountabfrage offline","In einer separaten Datei werden die Benutzerdaten, einschließlich Passwörter, sicher und getrennt gespeichert, um die Zugriffskontrolle zu gewährleisten und die Sicherheit von vertraulichen Informationen zu schützen. Die Accountabfrage von Benutzerdaten und Passwörtern ist ein sicherheitsrelevanter Prozess, der es ermöglicht, die Identität von Benutzern zu überprüfen und sicherzustellen, dass nur autorisierte Personen auf ein System oder eine Anwendung zugreifen können. Diese Datei liegt auf internen Rechnern dann vor.",{"v":20,"d":"20.00 €"},3]
[null,"2.10.5",null,null,5,null,"Externe Accountabfrage online","In einer separaten Datei werden die Benutzerdaten, einschließlich Passwörter, sicher und getrennt gespeichert, um die Zugriffskontrolle zu gewährleisten und die Sicherheit von vertraulichen Informationen zu schützen. Die Accountabfrage von Benutzerdaten und Passwörtern ist ein sicherheitsrelevanter Prozess, der es ermöglicht, die Identität von Benutzern zu überprüfen und sicherzustellen, dass nur autorisierte Personen auf ein System oder eine Anwendung zugreifen können. Diese Datei liegt nicht im internen Netzwerk oder auf internen Rechnern vor, sondern auf einem externen Rechner, sodass der unerlaubte Zugriff am Terminal bspw. nicht möglich und darum gesichert ist.",{"v":30,"d":"30.00 €"},3]
[null,"2.10.6",null,null,6,null,"Passwortwiederherstellungsmöglichkeit","Die Passwortwiederherstellungsmöglichkeit bietet Benutzern die Option, auf sichere Weise auf ihre Konten zuzugreifen, falls sie ihr Passwort vergessen haben, durch den Einsatz von verifizierten Identitätsprüfungen oder alternativen Authentifizierungsmethoden.",{"v":15,"d":"15.00 €"},3]
[null,"2.10.7",null,null,7,null,"Registierungsprozedur","Die Registrierungsprozedur ist der Prozess, bei dem Benutzer ihre Identität bestätigen und persönliche Informationen bereitstellen, um Zugriff auf ein System, eine Plattform oder eine Anwendung zu erhalten.",{"v":10,"d":"10.00 €"},3]
[null,"2.10.8",null,null,8,null,"Pin-Login","Der PIN-Login ist eine Authentifizierungsmethode, bei der Benutzer sich mithilfe einer persönlichen Identifikationsnummer (PIN) anmelden, um auf ein System, ein Gerät oder eine Anwendung zuzugreifen.",{"v":5,"d":"5.00 €"},3]
[null,"2.10.9",null,null,9,null,"Auto-Login","Der Auto-Login ist eine Authentifizierungsmethode, bei der Benutzer sich mithilfe Freischaltung der Sicherheitsvorkehrungen automatisch anmelden kann, um auf ein System, ein Gerät oder eine Anwendung zuzugreifen. Dadurch spart der User die Login Aufwände, der Schutz wirkt dabei indirekt proportional, aber in bestimmten Situationen, kann dies von Vorteil sein bspw. häufiger Verwendung.",{"v":5,"d":"5.00 €"},3]
[null,"2.9.",null,9,null,null,"Zugangsberechtigung"]
[null,"2.9.1",null,null,1,null,"Kundenlogin","Der Kundenlogin zu Produkten ermöglicht es registrierten Benutzern, sich mit ihren individuellen Anmeldeinformationen anzumelden, um auf personalisierte Funktionen, Informationen oder Dienstleistungen im Zusammenhang mit den angebotenen Produkten zuzugreifen. Eine Vergabe von Kundennummern und Projektnummern ist ab dem 1. Bestellprozess möglich.",{"v":0,"d":"0.00 €"},3]
[null,"2.9.2",null,null,2,null,"Mitarbeiterlogin","Der Mitarbeiterlogin zu Produkten ermöglicht es registrierten Benutzern, sich mit ihren individuellen Anmeldeinformationen anzumelden, um auf personalisierte Funktionen, Informationen oder Dienstleistungen im Zusammenhang mit den angebotenen Produkten zuzugreifen. Eine Vergabe von Kundennummern und Projektnummern ist ab dem 1. Bestellprozess möglich. Diese Option betrifft, die Verwaltung von Projekten durch mehrere Personen und kann von Vorteil sein.",{"v":5,"d":"5.00 €"},4]
[null,"2.9.3",null,null,3,null,"Abteilungsberechtigung bis 10 Personen","Der Mitarbeiterlogin zu Produkten ermöglicht es registrierten Benutzern, sich mit ihren individuellen Anmeldeinformationen anzumelden, um auf personalisierte Funktionen, Informationen oder Dienstleistungen im Zusammenhang mit den angebotenen Produkten zuzugreifen. Eine Vergabe von Kundennummern und Projektnummern ist ab dem 1. Bestellprozess möglich. Diese Option betrifft, die Verwaltung von Projekten durch mehrere Personen und kann von Vorteil sein. Ähnlich wie einen einzelnen Mitarbeiter zusätzlich zu einem Projekt oder Unternehmen zu zuordnen, kann dies auch Abteilungsweise erfolgen. Dabei ist es aber einer Zahl von 8 Mitarbeitern vergünstigt.",{"v":40,"d":"40.00 €"},4]
[null,"2.10.",null,10,null,null,"Mandantschaft",null,null,3]
[null,"2.10.1",null,null,1,null,"1 - Person","Das Hinzufügen von Mandanten zu Systemen oder Dateien, spielt im Aufwand eine kostenentscheidende Rolle. User können als Mandanten angelegt werden, wodurch nur Sie auf bestimmte Bereiche, Rechte und Informationen Zugang erhalten.",{"v":5,"d":"5.00 €"},3]
[null,"2.10.2",null,null,2,null,"n - Personen pro Person","Das Hinzufügen von Mandanten zu Systemen oder Dateien, spielt im Aufwand eine kostenentscheidende Rolle. User können als Mandanten angelegt werden, wodurch nur Sie auf bestimmte Bereiche, Rechte und Informationen Zugang erhalten. Folgende Personen bei mehr als einer Person, sind etwas günstiger und unendlich Erweiterbar möglich.",{"v":4,"d":"4.00 €"},3]
[null,"2.10.3",null,null,3,null,"Normalinstanz","Die Normalinstanz die standardmäßig geliefert wird, ermöglicht in VBA Excel die Ausführung einer Instanzen eines Makros oder einer Anwendung auf squenziellen Daten- oder Arbeitsblättern innerhalb desselben Excel-Programms.",{"v":0,"d":"0.00 €"},4]
[null,"2.10.4",null,null,4,null,"Multiinstanz","Die Multiinstanz die standardmäßig nicht geliefert wird, ermöglicht in VBA Excel die gleichzeitige Ausführung mehrerer Instanzen eines Makros oder einer Anwendung auf verschiedenen Daten- oder Arbeitsblättern innerhalb mehrerer Excel-Programminstanzen.",{"v":60,"d":"60.00 €"},3]
[null,"3..",3,{"$nulls":3},"Qualität",null,null,3]
[null,"3.1.",null,1,null,null,"Updateability","\"Updateability\" bezieht sich auf die Fähigkeit eines Systems, einer Software oder Anwendung, einfach aktualisiert oder modifiziert werden zu können, um neue Funktionen, Verbesserungen oder Fehlerkorrekturen zu integrieren und damit die Funktionalität, Sicherheit oder Leistung zu steigern.",{"v":30,"d":"30.00 €"},3]
[null,"3.2.",null,2,null,null,"Useability pro h","\"Usability-Aufwändungen in der Entwicklung beziehen sich auf die zusätzlichen Ressourcen und Kosten, die für die Gestaltung und Implementierung benutzerfreundlicher Schnittstellen und Funktionen aufgewendet werden, um die Gebrauchstauglichkeit eines Produkts zu verbessern.\"",{"v":5,"d":"5.00 €"},3]
[null,"4..",4,{"$nulls":3},"Service",null,null,3]
[null,"4.1.",null,1,null,null,"Online Service pro h","Der Online-Service wird auf Stundenbasis abgerechnet, wobei die Kosten nach dem aufgewendeten Arbeitsaufwand berechnet werden.",{"v":30,"d":"30.00 €"},3]
[null,"4.2.",null,2,null,null,"Remote Service pro h","Der Remoteservice wird auf Stundenbasis abgerechnet, wobei die Kosten entsprechend dem aufgewendeten Arbeitsaufwand berechnet werden.",{"v":45,"d":"45.00 €"},3]
[null,"4.3.",null,3,null,null,"Präsenz Service pro h","\"Präsenzservice\" bezieht sich auf Dienstleistungen, die physisch vor Ort erbracht werden, und nicht remote oder virtuell, wobei die Kosten entsprechend dem aufgewendeten Arbeitsaufwand berechnet werden.",{"v":65,"d":"65.00 €"},3]
[null,"5..",5,{"$nulls":3},"Programmierung nach Aufwand"]
[null,"5.1.",null,1,null,null,"Design pro h","Die Designarbeit erfolgt auf Stundenbasis, wobei die Abrechnung entsprechend dem aufgewendeten Arbeitsaufwand erfolgt.",{"v":15,"d":"15.00 €"},3]
[null,"5.2.",null,2,null,null,"Befehlsschaltflächen in Tabellen pro Sheet","Die Erstellung von Befehlsschaltflächen in Excel-Sheets ermöglicht es Benutzern, benutzerdefinierte Aktionen mit einem einzigen Klick auszuführen und trägt somit zur verbesserten Benutzerinteraktion und Effizienz bei.",{"v":5,"d":"5.00 €"},3]
[null,"5.3.",null,3,null,null,"Userforms","UserForms in Excel ermöglichen die Erstellung benutzerdefinierter Dialogfelder, die es erleichtern, Daten von Benutzern zu erfassen, zu bearbeiten oder anzuzeigen, was die Benutzerfreundlichkeit und Funktionalität von Excel-Anwendungen verbessert. EineUserform umfasst gemittelt mehr als 8 Prozeduren mit durchschnittlich 16 Codezeilen. Userforms sind vom Umfang her ähnlich wie Module, sind aber aufgrund ihrer statischen Art pauschal preisgünstiger.",{"v":43.2,"d":"43.20 €"},4]
[null,"5.4.",null,4,null,null,"Modul","In der Programmierung von VBA (Visual Basic for Applications) in Excel sind Module Container, die Code enthalten, der Funktionen, Prozeduren oder Variablen für eine Excel-Arbeitsmappe bereitstellt, wodurch die Organisation und Wiederverwendbarkeit von Code verbessert wird. Der Preis richtet sich an unsere betrieblichen Ausgaben und ist reduziert durch die vorhandenen Bestände und erwartete Kundschaft. Ein Modul umfasst gemittelt 8 Prozeduren mit durchschnittlich 16 Codezeilen. Module sind vom Umfang her ähnlich wie Userforms, die ebenfalls Prozeduren mit dieser Anzahl an Codezeilen enthalten.",{"v":43.2,"d":"43.20 €"},4]
[null,"5.5.",null,5,null,null,"Prozedur","Prozeduren in der VBA (Visual Basic for Applications) Programmierung sind Abschnitte von Code, die eine bestimmte Aufgabe oder Funktion ausführen. Diese können Subprozeduren oder Funktionen sein und dienen dazu, den Code zu strukturieren und wiederzuverwenden. Subprozeduren führen eine Aktion aus, während Funktionen einen Wert zurückgeben können. Wir gehen für Module von ca. 8 Prozeduren aus. Diese Anzahl kann je nach Projekt oder Funktionalität tendenziell eher mehr sein.",{"v":5.4,"d":"5.40 €"},4]
[null,"5.6.",null,6,null,null,"Quellcodezeile","Quellcodezeilen sind einzelne Anweisungen oder Codeabschnitte in einem Programmierprojekt. Jede Zeile im Quellcode enthält eine Anweisung oder eine Gruppe von Anweisungen, die vom Compiler oder Interpreter verstanden und ausgeführt werden können. Die Gesamtanzahl der Quellcodezeilen in einem Programm gibt Aufschluss über die Größe und den Umfang des Codes.",{"v":0.3,"d":"0.30 €"},4]
[null,"6..",6,{"$nulls":3},"Preismodell",null,null,3]
[null,"6.1.",null,1,null,null,"Festpreisvertrag","Vereinbarung eines festen Preises für die Fertigstellung des VBA-Programmierungsprojekts. Dies bietet klare finanzielle Vorhersehbarkeit für beide Seiten.",null,1]
[null,"6.2.",null,2,null,null,"Zeit- und Materialvertrag","Abrechnung basierend auf den tatsächlich aufgewendeten Stunden und Materialien. Geeignet, wenn die Projektanforderungen nicht vollständig vorhersehbar sind",null,1]
[null,"6.3.",null,3,null,null,"Rahmenvertrag","Ein Vertrag, der die allgemeinen Bedingungen für eine längerfristige Zusammenarbeit festlegt, mit einzelnen Arbeitsaufträgen für spezifische VBA-Programmieraufgaben.",null,1]
[null,"6.4.",null,4,null,null,"Wartungsvertrag","Festlegung von Bedingungen und Kosten für die Wartung, Aktualisierung und Fehlerbehebung des VBA-Codes nach Abschluss des Hauptprojekts",null,1]
[null,"6.5.",null,5,null,null,"Lizenzvertrag","Festlegung von Bedingungen für die Lizenzierung und Nutzung des erstellten VBA-Codes. Dies kann relevant sein, wenn der Code für mehrere Anwendungen oder Kunden verwendet wird",null,1]
[null,"6.6.",null,6,null,null,"Agiler Vertrag","Anwendung agiler Entwicklungsprinzipien mit flexiblen Vertragsbedingungen, die auf Änderungen in den Anforderungen reagieren können",null,1]
[null,"6.7.",null,7,null,null,"Schlüsselfertigvertrag","Der Auftragnehmer übernimmt die Verantwortung für das gesamte Projekt, einschließlich Planung, Entwicklung und Bereitstellung des VBA-Codes, wäre dann kombinierbar mit einer einer anderen Vertragsart bzgl. der Aufwandsentlohnung.",null,1]
[null,"6.8.",null,8,null,null,"Teilvertrag","Ein Vertrag für die Durchführung eines bestimmten Teils des VBA-Entwicklungsprojekts. Dies ermöglicht eine phasenweise Abwicklung des Projekts.",null,1]

{"sheet":"Produktlog","index":5,"n_rows":71,"n_cols":13,"rows_kept":71}
["MUID","UID","ID","ID","ID","ID","Struktur","Beschreibung","Preis","Typ","Website","Youtube","Sonstiges"]
[1,"1..",1,{"$nulls":3},"Produkte"]
[null,"1.1.",null,1,null,null,"Prozessor-ID - pauschal Gebühr","Die Prozessor-ID beschreibt für spezielle Lizenz Modelle, die eindeutige Entität auf die eine Lizenz zertifiziert werden kann. Insbesondere bei größeren Projekten und bestimmten Sicherheitsbedingungen kann dies ein guter Lösungsansatz sein. So können auch mehrere eindeutige Identifizierungsnummern erhoben werden, um diese beispielsweise auch selbst zu registrieren.",{"v":5,"d":"€5.00"},3,"https://wasbt.com/VBA-Downloads/","https://www.youtube.com/watch?v=98z521DFIhs"]
[null,"1.2.",null,2,null,null,"Digitale Lernumgebung - pauschal Gebühr","Die Lernplattform ist eine Subvention an Schüler, Studenten, Forschern und allen die mit Wissensmanagement mehr erreichen möchten. Sie beinhaltet Funktionalitäten die es erleichtern, die Gesamtheit eines Themas oder Forschungsbereichs zu erfassen oder/und weiterzubearbeiten. Der Vorteil gegenüber handschriftlicher Recherche sind besonders die digitalen Möglichkeiten. Ein erneutes Anordnen erfasster Strukturen ist bspw. kinderleicht.",{"v":5,"d":"€5.00"},3,"https://wasbt.com/VBA-Downloads/","https://www.youtube.com/watch?v=Q1_kTIU5Wzc"]
[null,"1.3.",null,3,null,null,"Fokus Zentralisierung - pauschal Gebühr","Mit einer Zentralisierung von Inhaltslisten, kann der Fokus auf das Gesamte bekanntlich verbessert werden. Nicht nur aus einer thematisch spezifizierte digitalen Lernumgebung können Ihre Inhaltsliste manuell übertragen werden, es können auch Fokussierungen vorbereitet werden. Ein strukturelles Arbeiten von Haupt- zu Unterthemen hilft unerledigten Aufgaben nach Prioritäten zu ordnen und entsprechend abzuarbeiten. So bleibt man konzentrierter und verhindert aufkommenden Stress.",{"v":5,"d":"€5.00"},3,"https://wasbt.com/VBA-Downloads/","https://www.youtube.com/watch?v=tm0IDPB4W_A"]
[null,"1.4.",null,4,null,null,"Kanban Scrum small - pauschal Gebühr","Kanban-Boards helfen allen, sich auf die Fertigstellung der aktuellen Arbeit zu konzentrieren, bevor sie mit einer neuen Aufgabe beginnen. Kanban_Scrum_small.xlsm unterstützt und hilft bei der Erreichung von Zielen, bedingte Durchläufe und bei der Verteilung von Kapazitäten und Aufgaben.",{"v":5,"d":"€5.00"},3,"https://wasbt.com/VBA-Downloads/","https://www.youtube.com/watch?v=rwBvCNtKWI8"]
[null,"1.5.",null,5,null,null,"Process Modeller - pauschal Gebühr","Die Business Process Model and Notation ist eine grafische Spezifikationssprache in der Wirtschaftsinformatik und im Prozessmanagement. Eine Tabellarische Modellierung komplexerer Prozesse ist bisweilen nur manuell möglich. Der Process_Modeller.xlsm verfügt über die Funktionalität aus einer textuellen Beschreibung bzw. tabellarischen Modellierung, Modelle zu generieren und kann sie individuell formatieren, transponieren, transferieren uvm.",{"v":5,"d":"€5.00"},3,"https://wasbt.com/VBA-Downloads/","https://www.youtube.com/watch?v=zXLDU8SUkxQ"]
[null,"1.6.",null,6,null,null,"Swimlane Elaborator - pauschal Gebühr","Unter Swimlane_Elaboration wird in der Prozess der vertieften Informationsverarbeitung aus dem Gehirn oder einer synthetischen Quelle verstanden, durch welches neu erworbenes Wissen in die bereits bestehenden Strukturen integriert werden können. Eine Swimlaneliste konsolidiert dabei zusätzlich Planungsparameter.",{"v":5,"d":"€5.00"},3,"https://wasbt.com/VBA-Downloads/","https://www.youtube.com/watch?v=RqKjbTNG3OA"]
[null,"1.7.",null,7,null,null,"MindMap Modeller - pauschal Gebühr","Die Mindmap beschreibt eine geprägte kognitive Technik, die man z. B. zum Erschließen und visuellen Darstellen eines Themengebietes, zum Planen oder für Mitschriften nutzen kann. In Kombination sind zwei Modellarten möglich.",{"v":5,"d":"€5.00"},3,"https://wasbt.com/VBA-Downloads/","https://www.youtube.com/watch?v=KBHwqNjd6vA"]
[null,"1.8.",null,8,null,null,"Direct Memorandum - pauschal Gebühr","Ein Denkarium oder Pensieve ist etwas in der frühere Erlebnisse und Erinnerungen abgespeichert und später wieder angesehen werden können. Das Direct_Memorandum.xlsm wurde entwickelt um die Datenstruktur eines Computersystems beliebig darzustellen. Durch Hyperlinks kann man direkt darauf zugreifen und weitere Features ermöglichen Datenlisten zu erstellen oder die Analysen bspw. zu duplizieren.",{"v":5,"d":"€5.00"},3,"https://wasbt.com/VBA-Downloads/","https://www.youtube.com/watch?v=2ucPhnjp_mo"]
[null,"1.9.",null,9,null,null,"Fileread Translator - pauschal Gebühr","Der Fileread_Translator besitzt drei Hauptfunktionen: 1. Datentypen filtern, auflisten und hyperlinken 2. Textanalyse und listen in Groß-und Klein geschriebenen Wörter 3. Übersetzung in 108 Sprachen von Listen und Excel Dateien. Eine Autotranslation von Texten in der Zwischenablage analysiert zusätzlich Sätze und übersetzt diese zeilenweise.",{"v":5,"d":"€5.00"},3,"https://wasbt.com/VBA-Downloads/","https://www.youtube.com/watch?v=M0h0fj7lljk"]
[null,"1.10.",null,11,null,null,"Magna_Carta_Terminal_Sets_Manager - pauschal Gebühr","Das als eines der frühesten Entwicklungen einst verloren geglaubte Magna Carte baut auf Grundprinzipien der Verbindung von Datenassets, Quellen und Visualisieren auf. Unterstützt von Data Crawling Technologien, wird das Durchsuchen und Extrahieren von Daten aus verschiedenen Quellen ermöglicht. Seitenweise können Magna Carta Einträge zwischengespeichert, mit der Data Crawling Technologie angereichert und Reverse Engineered werden. Die Verwaltung von Terminalsets, erleichtert das Managen von Endpunkten oder Schnittstellen in einem Netzwerk oder System.",{"v":5,"d":"€5.00"},3,"https://wasbt.com/VBA-Downloads/"]
[null,"1.11.",null,12,null,null,"Produktkonfigurations Manager - pauschal Gebühr","Ein \"Produktkonfigurations-Manager\" ist in der Regel eine Software oder ein System, das die Konfiguration von Produkten in einem Unternehmen verwaltet. Diese Art von Tool wird oft in Unternehmen eingesetzt, die komplexe Produkte anbieten, die aus verschiedenen Baugruppen, Optionen und Varianten bestehen. Produktlogs können gespeichert und wieder geladen werden. So ist es möglich mehrere Produktsets zu verwalten. Erleichtert wird damit: Variantenmanagement, Stücklistenverwaltung, Konfliktmanagement, PReiskalkulation, Angebotsmanagement in Form einer stets erneuerbaren Auswahl-Preisliste und die Integration mit anderen Systemen (ERP, CRM, PLM) um einen durchgängen Informationsfluss sicherzustellen.",{"v":5,"d":"€5.00"},3,"https://wasbt.com/VBA-Downloads/"]
[null,"1.12.",null,13,null,null,"Preis Bestellung Produktmarktplattform - pauschal Gebühr","Die Marktplattform in Excel ermöglicht es Verkäufern Ihre Produkte anbieten zu ikönnen. Festpreise, Rabatte oder Stückzahländerungen haben kalkulatorischen Einfluss auf die Preisbildung. Der Bestellprozess ist vielseitig unterstützt, von Warenkorb, zu konkreten Angeboten, bis hin zu Kundenspezifischer Auftragsformulierung.",{"v":5,"d":"€5.00"},3,"https://wasbt.com/VBA-Downloads/"]
[null,"1.13.",null,14,null,null,"All-in-One Business Product Orchestrator - pauschal Gebühr","Der All-in-One Business Product Orchestrator vereinigt alle Funktionalitäten von Magna_Carta_Terminal_Sets_Manager, Produktkonfigurations Manager und Preis Bestellung Produktmarktplattform. Diese Fusion reduziert die manuellen Bearbeitungsschritte für holistische Abbildungen von Realitäten, Systemen oder Sonstigem. Lesen Sie die oben genannten Einheiten um sich eine Vorstellung von diesem Orchestrator machen zu können.",{"v":5,"d":"€5.00"},3,"https://wasbt.com/VBA-Downloads/"]
[null,"1.11.",null,15,null,null,"Personal Knowledge Manager - pauschal Gebühr","Die Fusion des Personal Knowledge Managers mit dem Lebenslauf bietet eine nahtlose Integration von beruflichen Kompetenzen und persönlichem Wissensmanagement. Diese innovative Verbindung ermöglicht es, nicht nur berufliche Erfahrungen und Qualifikationen darzustellen, sondern auch persönliche Entwicklungen und erworbenes Wissen effektiv zu präsentieren.",{"v":5,"d":"€5.00"},3,"https://wasbt.com/VBA-Downloads/"]
[null,"2..",2,{"$nulls":3},"Sicherheit"]
[null,"2.1.",null,1,null,null,"Datenquellenpasswortschutz","Ein Verschlüsselungsprogramm, schützt Ihre Datei vor unbefugten Zugriff oder vor Einbruch auf geschäftsrelevante Informationen in Ihren Dateien. Das Passwort kann bei uns hinterlegt werden oder selbst frei gewählt werden. Wir bereiten unsere Lieferung fertig geschützt vor Übergang und Transfer vor, sodass von Anfang an, Sicherheit gewährleistet wird.",{"v":4,"d":"4.00 €"},3]
[null,"2.2.",null,2,null,null,"Kommunikationsverschlüsselung","Spezielle Entwicklungen bedürfen heutzutage einer Verschlüsselung von E-Mail-Nachrichten oder anderer textueller Kommunikationswege. Wir entwickelten eine Kombination aus Caesar, Vigenère und polyalphabetischer Substitution zur Verschlüsselung und Entschlüsselung von Nachrichten.",{"v":4,"d":"4.00 €"},3]
[null,"2.3.",null,3,null,null,"Prozessor-ID-Schutz","Registrativ kann ein Computer an der Prozessor-ID eindeutig identifiziert werden. Sie gilt als eine Art Ausweisdokument für Instanzen oder Lizensierte Kunden und deren Personal. Die Prozessor-ID bietet dahingehend Schutz, dass die Technologien nur auf diesen registrierten Computern ausgeführt werden können. Die Prozessor-ID ist einmalig und kann in den Quellcode als unnachgibige Bedingung eingebaut werden.",{"v":4,"d":"4.00 €"},3]
[null,"2.4.",null,4,null,null,"Tabellenschutz","Tabellenschutz ist eine Funktion in Tabellenkalkulationsprogrammen wie Microsoft Excel, die es ermöglicht, Zellen oder Bereiche vor unautorisiertem Zugriff oder Änderungen zu schützen, indem Passwörter oder andere Sicherheitsmaßnahmen festgelegt werden.",{"v":4,"d":"4.00 €"},3]
[null,"2.5.",null,5,null,null,"Bearbeitungsschutz","Der Bearbeitungsschutz bezieht sich auf die Einschränkung oder Verhinderung der Bearbeitung von Dokumenten, Dateien oder anderen digitalen Inhalten, um die Integrität, Sicherheit oder bestimmte Genehmigungsprozesse zu gewährleisten. Dies kann durch Passwörter, Zugriffsbeschränkungen oder andere Sicherheitsmechanismen implementiert werden.",{"v":4,"d":"4.00 €"},3]
[null,"2.6.",null,6,null,null,"Sichtbarkeitsschutz","Der  \"Sichtbarkeitsschutz\" bezieht sich auf Maßnahmen, die ergriffen werden, um die Sichtbarkeit oder den Zugriff auf bestimmte Informationen oder Ressourcen zu beschränken. Dies kann durch Zugriffsrechte, Verschlüsselung oder andere Sicherheitsmechanismen erfolgen, um sicherzustellen, dass nur autorisierte Benutzer oder Systeme die Informationen sehen oder darauf zugreifen können. Sichtbarkeitsschutz ist eine wichtige Komponente in der Informationssicherheit, um sensible Daten vor unbefugtem Zugriff zu schützen.",{"v":4,"d":"4.00 €"},3]
[null,"2.7.",null,7,null,null,"Schreibschutz","Der Schreibschutz bezeichnet eine Sicherheitsmaßnahme, die verhindert, dass Daten, Dateien oder Dokumente bearbeitet oder verändert werden können. Durch das Aktivieren des Schreibschutzes können Inhalte vor versehentlichen oder unbefugten Änderungen geschützt werden. Diese Funktion wird häufig durch das Festlegen von Berechtigungen, Kennwörtern oder anderen Mechanismen implementiert, um die Integrität und Sicherheit von Informationen zu gewährleisten.",{"v":4,"d":"4.00 €"},3]
[null,"2.8.",null,8,null,null,"Projektschutz","In VBA-Technologien können Projektschutzmaßnahmen durch die Verwendung von Passwörtern, Verschlüsselung und Zugriffssteuerungen implementiert werden, um den Quellcode, Makros oder andere kritische Elemente vor unbefugtem Zugriff oder Änderungen zu schützen.",{"v":4,"d":"4.00 €"},3]
[null,"2.8.1",null,null,1,null,"Startsequenz","In VBA kann der Startsequenzschutz durch die Implementierung von Maßnahmen wie Passwörtern, Verschlüsselung oder anderen Sicherheitsmechanismen erfolgen, um sicherzustellen, dass der Start und die Ausführung von VBA-Makros oder Anwendungen nur von autorisierten Benutzern oder in sicheren Umgebungen erfolgen können.",{"v":10,"d":"10.00 €"},3]
[null,"2.8.2",null,null,2,null,"Endsequenz","In VBA für Excel kann der Endsequenzschutz durch die Implementierung von Sicherheitsmaßnahmen wie Passwörtern und Zugriffssteuerungen erfolgen, um sicherzustellen, dass nach dem Ausführen von Makros oder Anwendungen keine unautorisierten Änderungen vorgenommen werden können oder die Datei nicht ohne entsprechende Berechtigungen gespeichert wird.",{"v":10,"d":"10.00 €"},3]
[null,"2.8.3",null,null,3,null,"Quellcodeschutz","Der Quellcodeschutz in VBA (Visual Basic for Applications) bezieht sich auf Maßnahmen, die ergriffen werden, um den Quellcode von Makros oder Anwendungen vor unautorisiertem Zugriff, Anzeigen oder Änderungen zu schützen. Dies kann durch die Verwendung von Passwörtern, Verschlüsselungstechniken oder anderen Sicherheitsmechanismen erreicht werden, um sicherzustellen, dass nur berechtigte Benutzer Zugang zum VBA-Code haben und diesen nicht unerlaubt modifizieren können.",{"v":15,"d":"15.00 €"},3]
[null,"2.9.",null,9,null,null,"Onlineschutz","Der Begriff \"Onlineschutz\" bezieht sich auf Maßnahmen, die ergriffen werden, um Benutzer, Daten und Systeme vor Sicherheitsrisiken im Online-Umfeld zu schützen. Dazu gehören unter anderem: Serversicherheitsabfragen, Verschlüsselung und Entcryption. Auch die Aktualität der Basisdateien können dabei eine Rolle spielen.",{"v":15,"d":"15.00 €"},3]
[null,"2.10.",null,10,null,null,"Loginschutz ","Der Loginschutz ist eine Sicherheitsmaßnahme, die darauf abzielt, den Zugriff auf ein System oder eine Anwendung durch die Implementierung von Authentifizierungsmechanismen wie Benutzername und Passwort zu sichern, um unbefugten Zugang zu verhindern und die Integrität von Benutzerkonten zu schützen.",{"v":15,"d":"15.00 €"},3]
[null,"2.10.1",null,null,1,null,"Sichtbare Passworteingabe","Der Loginschutz mit sichtbarer Passworteingabe ist eine Sicherheitsmaßnahme, die darauf abzielt, den Zugriff auf ein System oder eine Anwendung durch die Implementierung von Authentifizierungsmechanismen wie Benutzername und Passwort zu sichern, um unbefugten Zugang zu verhindern und die Integrität von Benutzerkonten zu schützen. Die Sichtbarkeit der Passworteingabe ist dabei irrelevant in Sachen Sicherheit, da Sie von Dritten nicht gesehen werden bzw. gesehen werden darf.",{"v":20,"d":"20.00 €"},3]
[null,"2.10.2",null,null,2,null,"Versteckte Passworteingabe","Der Loginschutz mit versteckter Passworteingabe ist eine Sicherheitsmaßnahme, die darauf abzielt, den Zugriff auf ein System oder eine Anwendung durch die Implementierung von Authentifizierungsmechanismen wie Benutzername und Passwort zu sichern, um unbefugten Zugang zu verhindern und die Integrität von Benutzerkonten zu schützen. Die Versteckte Passworteingabe ist dabei relevant in Sachen Sicherheit, da Sie von Dritten  gesehen werden kann bzw. nicht gesehen werden darf.",{"v":20,"d":"20.00 €"},3]
[null,"2.10.3",null,null,3,null,"Interne Accountabfrage","Die interne Accountabfrage von Benutzerdaten und Passwörtern ist ein sicherheitsrelevanter Prozess, der es ermöglicht, die Identität von Benutzern zu überprüfen und sicherzustellen, dass nur autorisierte Personen auf ein System oder eine Anwendung zugreifen können.",{"v":10,"d":"10.00 €"},3]
[null,"2.10.4",null,null,4,null,"Externe Accountabfrage offline","In einer separaten Datei werden die Benutzerdaten, einschließlich Passwörter, sicher und getrennt gespeichert, um die Zugriffskontrolle zu gewährleisten und die Sicherheit von vertraulichen Informationen zu schützen. Die Accountabfrage von Benutzerdaten und Passwörtern ist ein sicherheitsrelevanter Prozess, der es ermöglicht, die Identität von Benutzern zu überprüfen und sicherzustellen, dass nur autorisierte Personen auf ein System oder eine Anwendung zugreifen können. Diese Datei liegt auf internen Rechnern dann vor.",{"v":20,"d":"20.00 €"},3]
[null,"2.10.5",null,null,5,null,"Externe Accountabfrage online","In einer separaten Datei werden die Benutzerdaten, einschließlich Passwörter, sicher und getrennt gespeichert, um die Zugriffskontrolle zu gewährleisten und die Sicherheit von vertraulichen Informationen zu schützen. Die Accountabfrage von Benutzerdaten und Passwörtern ist ein sicherheitsrelevanter Prozess, der es ermöglicht, die Identität von Benutzern zu überprüfen und sicherzustellen, dass nur autorisierte Personen auf ein System oder eine Anwendung zugreifen können. Diese Datei liegt nicht im internen Netzwerk oder auf internen Rechnern vor, sondern auf einem externen Rechner, sodass der unerlaubte Zugriff am Terminal bspw. nicht möglich und darum gesichert ist.",{"v":30,"d":"30.00 €"},3]
[null,"2.10.6",null,null,6,null,"Passwortwiederherstellungsmöglichkeit","Die Passwortwiederherstellungsmöglichkeit bietet Benutzern die Option, auf sichere Weise auf ihre Konten zuzugreifen, falls sie ihr Passwort vergessen haben, durch den Einsatz von verifizierten Identitätsprüfungen oder alternativen Authentifizierungsmethoden.",{"v":15,"d":"15.00 €"},3]
[null,"2.10.7",null,null,7,null,"Registierungsprozedur","Die Registrierungsprozedur ist der Prozess, bei dem Benutzer ihre Identität bestätigen und persönliche Informationen bereitstellen, um Zugriff auf ein System, eine Plattform oder eine Anwendung zu erhalten.",{"v":10,"d":"10.00 €"},3]
[null,"2.10.8",null,null,8,null,"Pin-Login","Der PIN-Login ist eine Authentifizierungsmethode, bei der Benutzer sich mithilfe einer persönlichen Identifikationsnummer (PIN) anmelden, um auf ein System, ein Gerät oder eine Anwendung zuzugreifen.",{"v":5,"d":"5.00 €"},3]
[null,"2.10.9",null,null,9,null,"Auto-Login","Der Auto-Login ist eine Authentifizierungsmethode, bei der Benutzer sich mithilfe Freischaltung der Sicherheitsvorkehrungen automatisch anmelden kann, um auf ein System, ein Gerät oder eine Anwendung zuzugreifen. Dadurch spart der User die Login Aufwände, der Schutz wirkt dabei indirekt proportional, aber in bestimmten Situationen, kann dies von Vorteil sein bspw. häufiger Verwendung.",{"v":5,"d":"5.00 €"},3]
[null,"2.9.",null,9,null,null,"Zugangsberechtigung"]
[null,"2.9.1",null,null,1,null,"Kundenlogin","Der Kundenlogin zu Produkten ermöglicht es registrierten Benutzern, sich mit ihren individuellen Anmeldeinformationen anzumelden, um auf personalisierte Funktionen, Informationen oder Dienstleistungen im Zusammenhang mit den angebotenen Produkten zuzugreifen. Eine Vergabe von Kundennummern und Projektnummern ist ab dem 1. Bestellprozess möglich.",{"v":0,"d":"0.00 €"},3]
[null,"2.9.2",null,null,2,null,"Mitarbeiterlogin","Der Mitarbeiterlogin zu Produkten ermöglicht es registrierten Benutzern, sich mit ihren individuellen Anmeldeinformationen anzumelden, um auf personalisierte Funktionen, Informationen oder Dienstleistungen im Zusammenhang mit den angebotenen Produkten zuzugreifen. Eine Vergabe von Kundennummern und Projektnummern ist ab dem 1. Bestellprozess möglich. Diese Option betrifft, die Verwaltung von Projekten durch mehrere Personen und kann von Vorteil sein.",{"v":5,"d":"5.00 €"},4]
[null,"2.9.3",null,null,3,null,"Abteilungsberechtigung bis 10 Personen","Der Mitarbeiterlogin zu Produkten ermöglicht es registrierten Benutzern, sich mit ihren individuellen Anmeldeinformationen anzumelden, um auf personalisierte Funktionen, Informationen oder Dienstleistungen im Zusammenhang mit den angebotenen Produkten zuzugreifen. Eine Vergabe von Kundennummern und Projektnummern ist ab dem 1. Bestellprozess möglich. Diese Option betrifft, die Verwaltung von Projekten durch mehrere Personen und kann von Vorteil sein. Ähnlich wie einen einzelnen Mitarbeiter zusätzlich zu einem Projekt oder Unternehmen zu zuordnen, kann dies auch Abteilungsweise erfolgen. Dabei ist es aber einer Zahl von 8 Mitarbeitern vergünstigt.",{"v":40,"d":"40.00 €"},4]
[null,"2.10.",null,10,null,null,"Mandantschaft",null,null,3]
[null,"2.10.1",null,null,1,null,"1 - Person","Das Hinzufügen von Mandanten zu Systemen oder Dateien, spielt im Aufwand eine kostenentscheidende Rolle. User können als Mandanten angelegt werden, wodurch nur Sie auf bestimmte Bereiche, Rechte und Informationen Zugang erhalten.",{"v":5,"d":"5.00 €"},3]
[null,"2.10.2",null,null,2,null,"n - Personen pro Person","Das Hinzufügen von Mandanten zu Systemen oder Dateien, spielt im Aufwand eine kostenentscheidende Rolle. User können als Mandanten angelegt werden, wodurch nur Sie auf bestimmte Bereiche, Rechte und Informationen Zugang erhalten. Folgende Personen bei mehr als einer Person, sind etwas günstiger und unendlich Erweiterbar möglich.",{"v":4,"d":"4.00 €"},3]
[null,"2.10.3",null,null,3,null,"Normalinstanz","Die Normalinstanz die standardmäßig geliefert wird, ermöglicht in VBA Excel die Ausführung einer Instanzen eines Makros oder einer Anwendung auf squenziellen Daten- oder Arbeitsblättern innerhalb desselben Excel-Programms.",{"v":0,"d":"0.00 €"},4]
[null,"2.10.4",null,null,4,null,"Multiinstanz","Die Multiinstanz die standardmäßig nicht geliefert wird, ermöglicht in VBA Excel die gleichzeitige Ausführung mehrerer Instanzen eines Makros oder einer Anwendung auf verschiedenen Daten- oder Arbeitsblättern innerhalb mehrerer Excel-Programminstanzen.",{"v":60,"d":"60.00 €"},3]
[null,"3..",3,{"$nulls":3},"Qualität",null,null,3]
[null,"3.1.",null,1,null,null,"Updateability","\"Updateability\" bezieht sich auf die Fähigkeit eines Systems, einer Software oder Anwendung, einfach aktualisiert oder modifiziert werden zu können, um neue Funktionen, Verbesserungen oder Fehlerkorrekturen zu integrieren und damit die Funktionalität, Sicherheit oder Leistung zu steigern.",{"v":30,"d":"30.00 €"},3]
[null,"3.2.",null,2,null,null,"Useability pro h","\"Usability-Aufwändungen in der Entwicklung beziehen sich auf die zusätzlichen Ressourcen und Kosten, die für die Gestaltung und Implementierung benutzerfreundlicher Schnittstellen und Funktionen aufgewendet werden, um die Gebrauchstauglichkeit eines Produkts zu verbessern.\"",{"v":5,"d":"5.00 €"},3]
[null,"4..",4,{"$nulls":3},"Service",null,null,3]
[null,"4.1.",null,1,null,null,"Online Service pro h","Der Online-Service wird auf Stundenbasis abgerechnet, wobei die Kosten nach dem aufgewendeten Arbeitsaufwand berechnet werden.",{"v":30,"d":"30.00 €"},3]
[null,"4.2.",null,2,null,null,"Remote Service pro h","Der Remoteservice wird auf Stundenbasis abgerechnet, wobei die Kosten entsprechend dem aufgewendeten Arbeitsaufwand berechnet werden.",{"v":45,"d":"45.00 €"},3]
[null,"4.3.",null,3,null,null,"Präsenz Service pro h","\"Präsenzservice\" bezieht sich auf Dienstleistungen, die physisch vor Ort erbracht werden, und nicht remote oder virtuell, wobei die Kosten entsprechend dem aufgewendeten Arbeitsaufwand berechnet werden.",{"v":65,"d":"65.00 €"},3]
[null,"5..",5,{"$nulls":3},"Programmierung nach Aufwand"]
[null,"5.1.",null,1,null,null,"Design pro h","Die Designarbeit erfolgt auf Stundenbasis, wobei die Abrechnung entsprechend dem aufgewendeten Arbeitsaufwand erfolgt.",{"v":15,"d":"15.00 €"},3]
[null,"5.2.",null,2,null,null,"Befehlsschaltflächen in Tabellen pro Sheet","Die Erstellung von Befehlsschaltflächen in Excel-Sheets ermöglicht es Benutzern, benutzerdefinierte Aktionen mit einem einzigen Klick auszuführen und trägt somit zur verbesserten Benutzerinteraktion und Effizienz bei.",{"v":5,"d":"5.00 €"},3]
[null,"5.3.",null,3,null,null,"Userforms","UserForms in Excel ermöglichen die Erstellung benutzerdefinierter Dialogfelder, die es erleichtern, Daten von Benutzern zu erfassen, zu bearbeiten oder anzuzeigen, was die Benutzerfreundlichkeit und Funktionalität von Excel-Anwendungen verbessert. EineUserform umfasst gemittelt mehr als 8 Prozeduren mit durchschnittlich 16 Codezeilen. Userforms sind vom Umfang her ähnlich wie Module, sind aber aufgrund ihrer statischen Art pauschal preisgünstiger.",{"v":43.2,"d":"43.20 €"},4]
[null,"5.4.",null,4,null,null,"Modul","In der Programmierung von VBA (Visual Basic for Applications) in Excel sind Module Container, die Code enthalten, der Funktionen, Prozeduren oder Variablen für eine Excel-Arbeitsmappe bereitstellt, wodurch die Organisation und Wiederverwendbarkeit von Code verbessert wird. Der Preis richtet sich an unsere betrieblichen Ausgaben und ist reduziert durch die vorhandenen Bestände und erwartete Kundschaft. Ein Modul umfasst gemittelt 8 Prozeduren mit durchschnittlich 16 Codezeilen. Module sind vom Umfang her ähnlich wie Userforms, die ebenfalls Prozeduren mit dieser Anzahl an Codezeilen enthalten.",{"v":43.2,"d":"43.20 €"},4]
[null,"5.5.",null,5,null,null,"Prozedur","Prozeduren in der VBA (Visual Basic for Applications) Programmierung sind Abschnitte von Code, die eine bestimmte Aufgabe oder Funktion ausführen. Diese können Subprozeduren oder Funktionen sein und dienen dazu, den Code zu strukturieren und wiederzuverwenden. Subprozeduren führen eine Aktion aus, während Funktionen einen Wert zurückgeben können. Wir gehen für Module von ca. 8 Prozeduren aus. Diese Anzahl kann je nach Projekt oder Funktionalität tendenziell eher mehr sein.",{"v":5.4,"d":"5.40 €"},4]
[null,"5.6.",null,6,null,null,"Quellcodezeile","Quellcodezeilen sind einzelne Anweisungen oder Codeabschnitte in einem Programmierprojekt. Jede Zeile im Quellcode enthält eine Anweisung oder eine Gruppe von Anweisungen, die vom Compiler oder Interpreter verstanden und ausgeführt werden können. Die Gesamtanzahl der Quellcodezeilen in einem Programm gibt Aufschluss über die Größe und den Umfang des Codes.",{"v":0.3,"d":"0.30 €"},4]
[null,"6..",6,{"$nulls":3},"Preismodell",null,null,3]
[null,"6.1.",null,1,null,null,"Festpreisvertrag","Vereinbarung eines festen Preises für die Fertigstellung des VBA-Programmierungsprojekts. Dies bietet klare finanzielle Vorhersehbarkeit für beide Seiten.",null,1]
[null,"6.2.",null,2,null,null,"Zeit- und Materialvertrag","Abrechnung basierend auf den tatsächlich aufgewendeten Stunden und Materialien. Geeignet, wenn die Projektanforderungen nicht vollständig vorhersehbar sind",null,1]
[null,"6.3.",null,3,null,null,"Rahmenvertrag","Ein Vertrag, der die allgemeinen Bedingungen für eine längerfristige Zusammenarbeit festlegt, mit einzelnen Arbeitsaufträgen für spezifische VBA-Programmieraufgaben.",null,1]
[null,"6.4.",null,4,null,null,"Wartungsvertrag","Festlegung von Bedingungen und Kosten für die Wartung, Aktualisierung und Fehlerbehebung des VBA-Codes nach Abschluss des Hauptprojekts",null,1]
[null,"6.5.",null,5,null,null,"Lizenzvertrag","Festlegung von Bedingungen für die Lizenzierung und Nutzung des erstellten VBA-Codes. Dies kann relevant sein, wenn der Code für mehrere Anwendungen oder Kunden verwendet wird",null,1]
[null,"6.6.",null,6,null,null,"Agiler Vertrag","Anwendung agiler Entwicklungsprinzipien mit flexiblen Vertragsbedingungen, die auf Änderungen in den Anforderungen reagieren können",null,1]
[null,"6.7.",null,7,null,null,"Schlüsselfertigvertrag","Der Auftragnehmer übernimmt die Verantwortung für das gesamte Projekt, einschließlich Planung, Entwicklung und Bereitstellung des VBA-Codes, wäre dann kombinierbar mit einer einer anderen Vertragsart bzgl. der Aufwandsentlohnung.",null,1]
[null,"6.8.",null,8,null,null,"Teilvertrag","Ein Vertrag für die Durchführung eines bestimmten Teils des VBA-Entwicklungsprojekts. Dies ermöglicht eine phasenweise Abwicklung des Projekts.",null,1]

{"sheet":"Preise&ProduktAuswahl","index":6,"n_rows":89,"n_cols":6,"rows_kept":89,"merged":[[2,0,2,5],[17,0,17,5],[56,0,56,5],[62,0,62,5],[69,0,69,5],[79,0,79,5]]}
[]
[]
["Produkte"]
["Typ","Anz.","Artikelnummer","Bezeichnung","Preis","Gesamtpreis"]
[3,null,"1.1.","Prozessor-ID - pauschal Gebühr",{"v":5,"d":"€5.00"},{"$f":"E5*B5","v":0}]
[3,null,"1.2.","Digitale Lernumgebung - pauschal Gebühr",{"v":5,"d":"€5.00"},{"$f":"E6*B6","v":0}]
[3,null,"1.3.","Fokus Zentralisierung - pauschal Gebühr",{"v":5,"d":"€5.00"},{"$f":"E7*B7","v":0}]
[3,null,"1.4.","Kanban Scrum small - pauschal Gebühr",{"v":5,"d":"€5.00"},{"$f":"E8*B8","v":0}]
[3,null,"1.5.","Process Modeller - pauschal Gebühr",{"v":5,"d":"€5.00"},{"$f":"E9*B9","v":0}]
[3,null,"1.6.","Swimlane Elaborator - pauschal Gebühr",{"v":5,"d":"€5.00"},{"$f":"E10*B10","v":0}]
[3,null,"1.7.","MindMap Modeller - pauschal Gebühr",{"v":5,"d":"€5.00"},{"$f":"E11*B11","v":0}]
[3,null,"1.8.","Direct Memorandum - pauschal Gebühr",{"v":5,"d":"€5.00"},{"$f":"E12*B12","v":0}]
[3,null,"1.9.","Fileread Translator - pauschal Gebühr",{"v":5,"d":"€5.00"},{"$f":"E13*B13","v":0}]
[3,null,"1.10.","Terminal Manager - pauschal Gebühr",{"v":5,"d":"€5.00"},{"$f":"E14*B14","v":0}]
[3,null,"1.11.","Personal Knowledge Manager - pauschal Gebühr",{"v":5,"d":"€5.00"},{"$f":"E15*B15","v":0}]
[]
[]
["Sicherheit"]
["Typ","Anz.","Artikelnummer","Bezeichnung","Preis","Gesamtpreis"]
[3,null,"2.1.","Datenquellenpasswortschutz",{"v":4,"d":"€4.00"},{"$f":"E20*B20","v":0}]
[3,null,"2.2.","Kommunikationsverschlüsselung",{"v":4,"d":"€4.00"},{"$f":"E21*B21","v":0}]
[3,null,"2.3.","Prozessor-ID-Schutz",{"v":4,"d":"€4.00"},{"$f":"E22*B22","v":0}]
[3,null,"2.4.","Tabellenschutz",{"v":4,"d":"€4.00"},{"$f":"E23*B23","v":0}]
[3,null,"2.5.","Bearbeitungsschutz",{"v":4,"d":"€4.00"},{"$f":"E24*B24","v":0}]
[3,null,"2.6.","Sichtbarkeitsschutz",{"v":4,"d":"€4.00"},{"$f":"E25*B25","v":0}]
[3,null,"2.7.","Schreibschutz",{"v":4,"d":"€4.00"},{"$f":"E26*B26","v":0}]
[3,null,"2.8.","Projektschutz",{"v":4,"d":"€4.00"},{"$f":"E27*B27","v":0}]
[3,null,"2.8.1","Startsequenz",{"v":10,"d":"€10.00"},{"$f":"E28*B28","v":0}]
[3,null,"2.8.2","Endsequenz",{"v":10,"d":"€10.00"},{"$f":"E29*B29","v":0}]
[3,null,"2.8.3","Quellcodeschutz",{"v":15,"d":"€15.00"},{"$f":"E30*B30","v":0}]
[3,null,"2.9.","Onlineschutz",{"v":15,"d":"€15.00"},{"$f":"E31*B31","v":0}]
[3,null,"2.10.","Loginschutz ",{"v":15,"d":"€15.00"},{"$f":"E32*B32","v":0}]
[3,null,"2.10.1","Sichtbare Passworteingabe",{"v":20,"d":"€20.00"},{"$f":"E33*B33","v":0}]
[3,null,"2.10.2","Versteckte Passworteingabe",{"v":20,"d":"€20.00"},{"$f":"E34*B34","v":0}]
[3,null,"2.10.3","Interne Accountabfrage",{"v":10,"d":"€10.00"},{"$f":"E35*B35","v":0}]
[3,null,"2.10.4","Externe Accountabfrage offline",{"v":20,"d":"€20.00"},{"$f":"E36*B36","v":0}]
[3,null,"2.10.5","Externe Accountabfrage online",{"v":30,"d":"€30.00"},{"$f":"E37*B37","v":0}]
[3,null,"2.10.6","Passwortwiederherstellungsmöglichkeit",{"v":15,"d":"€15.00"},{"$f":"E38*B38","v":0}]
[3,null,"2.10.7","Registierungsprozedur",{"v":10,"d":"€10.00"},{"$f":"E39*B39","v":0}]
[3,null,"2.10.8","Pin-Login",{"v":5,"d":"€5.00"},{"$f":"E40*B40","v":0}]
[3,null,"2.10.9","Auto-Login",{"v":5,"d":"€5.00"},{"$f":"E41*B41","v":0}]
[0,null,"2.9.","Zugangsberechtigung",null,{"$f":"E42*B42","v":0}]
[3,null,"2.9.1","Kundenlogin",{"v":0,"d":"€0.00"},{"$f":"E43*B43","v":0}]
[4,null,"2.9.2","Mitarbeiterlogin",{"v":5,"d":"€5.00"},{"$f":"E44*B44","v":0}]
[4,null,"2.9.3","Abteilungsberechtigung bis 10 Personen",{"v":40,"d":"€40.00"},{"$f":"E45*B45","v":0}]
[3,null,"2.10.","Mandantschaft",null,{"$f":"E46*B46","v":0}]
[3,null,"2.10.1","1 - Person",{"v":5,"d":"€5.00"},{"$f":"E47*B47","v":0}]
[3,null,"2.10.2","n - Personen pro Person",{"v":4,"d":"€4.00"},{"$f":"E48*B48","v":0}]
[4,null,"2.10.3","Normalinstanz",{"v":0,"d":"€0.00"},{"$f":"E49*B49","v":0}]
[]
[]
[]
[]
[3,null,"2.10.4","Multiinstanz",{"v":60,"d":"€60.00"},{"$f":"E54*B54","v":0}]
[]
[]
["Qualität"]
["Typ","Anz.","Artikelnummer","Bezeichnung","Preis","Gesamtpreis"]
[3,null,"3.1.","Updateability",{"v":30,"d":"€30.00"},{"$f":"E59*B59","v":0}]
[3,null,"3.2.","Useability pro h",{"v":5,"d":"€5.00"},{"$f":"E60*B60","v":0}]
[]
[]
["Service"]
["Typ","Anz.","Artikelnummer","Bezeichnung","Preis","Gesamtpreis"]
[3,null,"4.1.","Online Service pro h",{"v":30,"d":"€30.00"},{"$f":"E65*B65","v":0}]
[3,null,"4.2.","Remote Service pro h",{"v":45,"d":"€45.00"},{"$f":"E66*B66","v":0}]
[3,null,"4.3.","Präsenz Service pro h",{"v":65,"d":"€65.00"},{"$f":"E67*B67","v":0}]
[]
[]
["Programmierung nach Aufwand"]
["Typ","Anz.","Artikelnummer","Bezeichnung","Preis","Gesamtpreis"]
[3,null,"5.1.","Design pro h",{"v":15,"d":"€15.00"},{"$f":"E72*B72","v":0}]
[3,null,"5.2.","Befehlsschaltflächen in Tabellen pro Sheet",{"v":5,"d":"€5.00"},{"$f":"E73*B73","v":0}]
[4,null,"5.3.","Userforms",{"v":43.2,"d":"€43.20"},{"$f":"E74*B74","v":0}]
[4,null,"5.4.","Modul",{"v":43.2,"d":"€43.20"},{"$f":"E75*B75","v":0}]
[4,null,"5.5.","Prozedur",{"v":5.4,"d":"€5.40"},{"$f":"E76*B76","v":0}]
[4,null,"5.6.","Quellcodezeile",{"v":0.3,"d":"€0.30"},{"$f":"E77*B77","v":0}]
[]
[]
["Preismodell"]
["Typ","Anz.","Artikelnummer","Bezeichnung","Preis","Gesamtpreis"]
[1,null,"6.1.","Festpreisvertrag",null,{"$f":"E82*B82","v":0}]
[1,null,"6.2.","Zeit- und Materialvertrag",null,{"$f":"E83*B83","v":0}]
[1,null,"6.3.","Rahmenvertrag",null,{"$f":"E84*B84","v":0}]
[1,null,"6.4.","Wartungsvertrag",null,{"$f":"E85*B85","v":0}]
[1,null,"6.5.","Lizenzvertrag",null,{"$f":"E86*B86","v":0}]
[1,null,"6.6.","Agiler Vertrag",null,{"$f":"E87*B87","v":0}]
[1,null,"6.7.","Schlüsselfertigvertrag",null,{"$f":"E88*B88","v":0}]
[1,null,"6.8.","Teilvertrag",null,{"$f":"E89*B89","v":0}]

{"sheet":"Warenkorb","index":7,"n_rows":17,"n_cols":8,"rows_kept":17}
[]
["Typ","Anz.","Artikelnummer","Bezeichnung","Preis","Rabatttyp","Mengenrabatt","vorläufiger Preis"]
[1,1,"1.1.","Digitale Lernumgebung",{"v":3,"d":"3.00 €"},{"v":0,"d":"0%"},{"v":0.03,"d":"3%"},{"v":2.91,"d":"2.91 €"}]
[1,1,"1.2.","Fokus Zentralisierung",{"v":1,"d":"1.00 €"},{"v":0,"d":"0%"},{"v":0.03,"d":"3%"},{"v":0.97,"d":"0.97 €"}]
[1,1,"1.5.","Swimlane Elaborator",{"v":6,"d":"6.00 €"},{"v":0,"d":"0%"},{"v":0.03,"d":"3%"},{"v":5.82,"d":"5.82 €"}]
[1,1,"1.6.","MindMap Modeller",null,{"v":0,"d":"0%"},{"v":0.03,"d":"3%"},{"v":0,"d":"0.00 €"}]
[1,5,"2.2.","Kommunikationsverschlüsselung",{"v":3,"d":"3.00 €"},{"v":0,"d":"0%"},{"v":0.03,"d":"3%"},{"v":14.55,"d":"14.55 €"}]
[1,2,"2.4.","Tabellenschutz",{"v":6,"d":"6.00 €"},{"v":0,"d":"0%"},{"v":0.03,"d":"3%"},{"v":11.64,"d":"11.64 €"}]
[1,5,"2.10.6","Passwortwiederherstellungsmöglichkeit",{"v":12,"d":"12.00 €"},{"v":0,"d":"0%"},{"v":0.03,"d":"3%"},{"v":58.2,"d":"58.20 €"}]
[1,5,"2.10.8","Pin-Login",{"v":11,"d":"11.00 €"},{"v":0,"d":"0%"},{"v":0.03,"d":"3%"},{"v":53.35,"d":"53.35 €"}]
[1,3,"2.9.","Zugangsberechtigung",{"v":10,"d":"10.00 €"},{"v":0,"d":"0%"},{"v":0.03,"d":"3%"},{"v":29.1,"d":"29.10 €"}]
[1,5,"3.1.","Updateability",{"v":4,"d":"4.00 €"},{"v":0,"d":"0%"},{"v":0.03,"d":"3%"},{"v":19.4,"d":"19.40 €"}]
[1,5,"4.1.","Online Service",{"v":3,"d":"3.00 €"},{"v":0,"d":"0%"},{"v":0.03,"d":"3%"},{"v":14.55,"d":"14.55 €"}]
[1,5,"4.2.","Remote Service",{"v":4,"d":"4.00 €"},{"v":0,"d":"0%"},{"v":0.03,"d":"3%"},{"v":19.4,"d":"19.40 €"}]
[1,4,"5.1.","Befehlsschaltflächen in Tabellen",{"v":4,"d":"4.00 €"},{"v":0,"d":"0%"},{"v":0.03,"d":"3%"},{"v":15.52,"d":"15.52 €"}]
[1,5,"6.1.","Jahresvertrag",{"v":3,"d":"3.00 €"},{"v":0,"d":"0%"},{"v":0.03,"d":"3%"},{"v":14.55,"d":"14.55 €"}]
[1,1,"1.1.","Digitale Lernumgebung",{"v":3,"d":"3.00 €"},{"v":0,"d":"0%"},{"v":0.03,"d":"3%"},{"v":2.91,"d":"2.91 €"}]

{"sheet":"Angebot","index":8,"n_rows":85,"n_cols":7,"rows_kept":85,"merged":[[0,0,0,6],[15,0,15,6],[30,0,30,6],[49,0,49,6],[61,0,61,6],[72,0,72,6]]}
["Produkte"]
["Pos.","Type","Anz.","Artikelnummer","Bezeichnung","Preis","Gesamtpreis"]
[1,1,1,"1.1.","Digitale Lernumgebung",{"v":3,"d":"€3.00"},{"v":2.91,"d":"€2.91"}]
[1,1,1,"1.2.","Fokus Zentralisierung",{"v":1,"d":"€1.00"},{"v":0.97,"d":"€0.97"}]
[1,1,1,"1.5.","Swimlane Elaborator",{"v":6,"d":"€6.00"},{"v":5.82,"d":"€5.82"}]
[1,1,1,"1.6.","MindMap Modeller",null,{"v":0,"d":"€0.00"}]
[1,1,1,"1.1.","Digitale Lernumgebung",{"v":3,"d":"€3.00"},{"v":2.91,"d":"€2.91"}]
[]
[{"$nulls":5},"Kalkulatorische Gesamtsumme:",{"v":13,"d":"€13.00"}]
[{"$nulls":5},"Mengen & Rabatttyp  - Rabatt:",{"v":0.39,"d":"€0.39"}]
[{"$nulls":5},"Zu zahlender Endpreis:",{"v":12.61,"d":"€12.61"}]
[{"$nulls":5},"Darin enth. Brutto - MwST. 19%:",{"v":2.3959,"d":"€2.40"}]
[]
[]
[]
["Sicherheit"]
["Pos.","Type","Anz.","Artikelnummer","Bezeichnung","Preis","Gesamtpreis"]
[2,1,5,"2.2.","Kommunikationsverschlüsselung",{"v":3,"d":"€3.00"},{"v":14.55,"d":"€14.55"}]
[2,1,2,"2.4.","Tabellenschutz",{"v":6,"d":"€6.00"},{"v":11.64,"d":"€11.64"}]
[2,1,5,"2.10.6","Passwortwiederherstellungsmöglichkeit",{"v":12,"d":"€12.00"},{"v":58.2,"d":"€58.20"}]
[2,1,5,"2.10.8","Pin-Login",{"v":11,"d":"€11.00"},{"v":53.35,"d":"€53.35"}]
[2,1,3,"2.9.","Zugangsberechtigung",{"v":10,"d":"€10.00"},{"v":29.1,"d":"€29.10"}]
[]
[{"$nulls":5},"Kalkulatorische Gesamtsumme:",{"v":172,"d":"€172.00"}]
[{"$nulls":5},"Mengen & Rabatttyp  - Rabatt:",{"v":5.16,"d":"€5.16"}]
[{"$nulls":5},"Zu zahlender Endpreis:",{"v":166.84,"d":"€166.84"}]
[{"$nulls":5},"Darin enth. Brutto - MwST. 19%:",{"v":31.6996,"d":"€31.70"}]
[]
[]
[]
["Qualität"]
["Pos.","Type","Anz.","Artikelnummer","Bezeichnung","Preis","Gesamtpreis"]
[3,1,5,"3.1.","Updateability",{"v":4,"d":"€4.00"},{"v":19.4,"d":"€19.40"}]
[]
[{"$nulls":5},"Kalkulatorische Gesamtsumme:",{"v":20,"d":"€20.00"}]
[{"$nulls":5},"Mengen & Rabatttyp  - Rabatt:",{"v":0.6,"d":"€0.60"}]
[{"$nulls":5},"Zu zahlender Endpreis:",{"v":19.4,"d":"€19.40"}]
[{"$nulls":5},"Darin enth. Brutto - MwST. 19%:",{"v":3.686,"d":"€3.69"}]
{"$rows_empty":11}
["Service"]
["Pos.","Type","Anz.","Artikelnummer","Bezeichnung","Preis","Gesamtpreis"]
[4,1,5,"4.1.","Online Service",{"v":3,"d":"€3.00"},{"v":14.55,"d":"€14.55"}]
[4,1,5,"4.2.","Remote Service",{"v":4,"d":"€4.00"},{"v":19.4,"d":"€19.40"}]
[]
[{"$nulls":5},"Kalkulatorische Gesamtsumme:",{"v":35,"d":"€35.00"}]
[{"$nulls":5},"Mengen & Rabatttyp  - Rabatt:",{"v":1.0499999999999998,"d":"€1.05"}]
[{"$nulls":5},"Zu zahlender Endpreis:",{"v":33.95,"d":"€33.95"}]
[{"$nulls":5},"Darin enth. Brutto - MwST. 19%:",{"v":6.450500000000001,"d":"€6.45"}]
[]
[]
[]
["Programmierung nach Aufwand"]
["Pos.","Type","Anz.","Artikelnummer","Bezeichnung","Preis","Gesamtpreis"]
[5,1,4,"5.1.","Befehlsschaltflächen in Tabellen",{"v":4,"d":"€4.00"},{"v":15.52,"d":"€15.52"}]
[]
[{"$nulls":5},"Kalkulatorische Gesamtsumme:",{"v":16,"d":"€16.00"}]
[{"$nulls":5},"Mengen & Rabatttyp  - Rabatt:",{"v":0.48,"d":"€0.48"}]
[{"$nulls":5},"Zu zahlender Endpreis:",{"v":15.52,"d":"€15.52"}]
[{"$nulls":5},"Darin enth. Brutto - MwST. 19%:",{"v":2.9488,"d":"€2.95"}]
[]
[]
[]
["Preismodell"]
["Pos.","Type","Anz.","Artikelnummer","Bezeichnung","Preis","Gesamtpreis"]
[6,1,5,"6.1.","Jahresvertrag",{"v":3,"d":"€3.00"},{"v":14.55,"d":"€14.55"}]
[]
[{"$nulls":5},"Kalkulatorische Gesamtsumme:",{"v":15,"d":"€15.00"}]
[{"$nulls":5},"Mengen & Rabatttyp  - Rabatt:",{"v":0.44999999999999996,"d":"€0.45"}]
[{"$nulls":5},"Zu zahlender Endpreis:",{"v":14.55,"d":"€14.55"}]
[{"$nulls":5},"Darin enth. Brutto - MwST. 19%:",{"v":2.7645,"d":"€2.76"}]
[]
[{"$nulls":5},"Gesamtsummen",{"v":271,"d":"€271.00"}]
[{"$nulls":5},"Rabatte",{"v":8.129999999999999,"d":"€8.13"}]
[{"$nulls":5},"Endpreis",{"v":262.87,"d":"€262.87"}]
[{"$nulls":5},"darin MWST 19%",{"v":51.49,"d":"€51.49"}]

{"sheet":"AddSpecific","index":9,"n_rows":8,"n_cols":5,"rows_kept":8,"merged":[[0,0,0,6],[1,1,1,2],[1,4,1,6],[2,1,2,2],[2,4,35,6],[3,0,3,2],[4,0,4,2],[5,0,5,2],[6,0,6,2],[7,0,7,2]]}
["Spezifische Anfrage"]
["Pos.","Optionales",null,"Stückzahl","Technische Beschreibung"]
["n","Userforms:",null,null,"Auftrag an den Entwickler für die Implementierung einer Fortschrittsvisualisierung in einer Excel-UserForm\r\n\r\nProjektziel:\r\nEntwickeln Sie eine innovative Lösung zur Visualisierung von Fortschrittstexten in einer Excel-UserForm, um eine interaktive und ansprechende Benutzererfahrung zu schaffen.\r\n\r\nSpezifikationen:\r\n\r\n    UserForm und Fortschrittsanzeige:\r\n        Die Lösung betrifft eine existierende UserForm in einem Excel-Projekt.\r\n        Integrieren Sie ein neues Anzeigeelement mit dem Namen \"FortschrittsVisualizer\", das für die Darstellung von Fortschrittstexten vorgesehen ist.\r\n\r\n    Dynamische Fortschrittsvisualisierung:\r\n        Implementieren Sie eine dynamische Fortschrittsvisualisierung für den Textinhalt im \"FortschrittsVisualizer\".\r\n        Der Fortschrittstext soll nicht nur angezeigt, sondern auch visuell hervorgehoben werden, um den Fortschritt auf einen Blick erkennbar zu machen.\r\n\r\n    Interaktive Funktionen:\r\n        Schaffen Sie interaktive Funktionen, die dem Benutzer erlauben, den Fortschrittstext zu steuern oder zu aktualisieren.\r\n        Berücksichtigen Sie Optionen für Animationen, Farbvariationen oder andere visuelle Effekte, um eine ansprechende Benutzererfahrung zu gewährleisten.\r\n\r\nLiefertermin:\r\nDie implementierte Lösung soll bis [Datum] geliefert werden.\r\n\r\nZahlungsbedingungen:\r\nDie Zahlung erfolgt nach erfolgreicher Integration der Fortschrittsvisualisierungs-Lösung in die UserForm.\r\n\r\nAbnahme:\r\nDie Abnahme erfolgt nach einer kurzen Testphase, in der die Fortschrittsvisualisierung korrekt funktioniert und die interaktiven Funktionen optimiert sind.\r\n\r\nHinweis an den Entwickler:\r\nBitte dokumentieren Sie die implementierte Lösung und erläutern Sie kurz die angewandte Methode zur Fortschrittsvisualisierung. Bei Rückfragen stehe ich gerne zur Verfügung."]
["Module:"]
["Prozedure:"]
["Quellcodezeilen:"]
["Arbeitsaufwand:"]
["TXT|PDF|WORD:"]

{"sheet":"BspPJ","index":10,"n_rows":23,"n_cols":9,"rows_kept":23,"hidden":true}
[{"$nulls":7},15]
[{"$nulls":7},"Beispiele:","Projektziel:\nEntwickeln Sie eine einzigartige und kreative Lösung zur Textpräsentation in einer Excel-UserForm, die die Benutzerinteraktion verbessert und visuell ansprechend ist.\n\nSpezifikationen:\n\n    UserForm und Anzeigeelement:\n        Die Lösung ist für eine bestehende UserForm in einem Excel-Projekt vorgesehen.\n        Ein neues Anzeigeelement, das den Text darstellen soll, wird hinzugefügt. Nennen Sie es \"KreativerTextDisplay\".\n\n    Dynamische Textpräsentation:\n        Entwickeln Sie eine innovative Methode, um Textinhalte in \"KreativerTextDisplay\" dynamisch und visuell ansprechend darzustellen.\n        Überlegen Sie Möglichkeiten, wie der Textinhalt auf unkonventionelle Weise präsentiert werden kann, beispielsweise durch Animationen, Farbvariationen oder andere kreative Effekte.\n\n    Interaktionsmöglichkeiten:\n        Implementieren Sie interaktive Funktionen, die dem Benutzer erlauben, mit dem dargestellten Text zu interagieren. Dies könnte beinhalten: Hervorhebungen, Vergrößerungen oder andere visuelle Effekte bei Mausklick.\n\nLiefertermin:\nDie implementierte Lösung soll bis [Datum] geliefert werden.\n\nZahlungsbedingungen:\nDie Zahlung erfolgt nach erfolgreicher Integration der kreativen Textpräsentation-Lösung in die UserForm.\n\nAbnahme:\nDie Abnahme erfolgt nach einer Testphase, in der die kreative Textpräsentation erfolgreich umgesetzt und die Benutzerinteraktion optimiert ist.\n\nHinweis an den Entwickler:\nBitte dokumentieren Sie die implementierte Lösung und erläutern Sie kurz die angewandte Methode zur kreativen Textpräsentation. Bei Rückfragen stehe ich gerne zur Verfügung."]
[{"$nulls":8},"Projektziel:\nEntwickeln Sie ein benutzerfreundliches VBA-Programm namens \"DataAnalyzer\", das als Excel-Add-In fungiert und die Effizienz der Datenanalyse in Microsoft Excel verbessert. Das Programm soll automatisierte Funktionen zur Datenaufbereitung, -filterung und zur Generierung benutzerdefinierter Berichte bieten.\n\nSpezifikationen:\n\n    Benutzeroberfläche:\n        Gestalten Sie die Benutzeroberfläche des Programms als Excel-Add-In mit zusätzlichen Menüs und Schaltflächen.\n        Stellen Sie sicher, dass die Benutzeroberfläche intuitiv gestaltet ist, um eine einfache Bedienung für Benutzer mit unterschiedlichem Erfahrungsniveau zu gewährleisten.\n\n    Funktionalitäten:\n        Implementieren Sie eine automatische Datenaufbereitungsfunktion, um Rohdaten effizient zu verarbeiten.\n        Entwickeln Sie eine flexible Datenfilterung, die es Benutzern ermöglicht, Daten basierend auf benutzerdefinierten Kriterien zu filtern.\n        Realisieren Sie eine Berichterstellungsfunktion zur Generierung benutzerdefinierter Berichte und Diagramme.\n        Erlauben Sie erfahrenen Benutzern die Integration eigener VBA-Skripte zur Anpassung und Erweiterung der Funktionalitäten.\n\n    Dokumentation:\n        Erstellen Sie eine umfassende Dokumentation, die die Verwendung des Programms, seine Funktionen, Parameter und Optionen detailliert beschreibt.\n        Sorgen Sie dafür, dass die Dokumentation auch erfahrene Benutzer dazu befähigt, eigene Erweiterungen vorzunehmen.\n\n    Kompatibilität:\n        Gewährleisten Sie die Abwärtskompatibilität des Programms mit verschiedenen Versionen von Microsoft Excel, um eine maximale Nutzerbasis zu erreichen.\n\n    Qualitätssicherung:\n        Führen Sie umfassende Tests durch, um die Stabilität und Fehlerfreiheit des Programms sicherzustellen.\n        Implementieren Sie einen Fehlerprotokollmechanismus, der Benutzer über auftretende Fehler informiert.\n\n    Erweiterungsfähigkeit:\n        Entwerfen Sie die Architektur des Programms so, dass sie erweiterbar ist, um zukünftige Anpassungen und Funktionserweiterungen zu ermöglichen.\n\nLiefertermin:\nDas fertige VBA-Programm \"DataAnalyzer\" soll bis [Datum] geliefert werden.\n\nZahlungsbedingungen:\nDie Zahlung erfolgt in [Anzahl der Raten oder Gesamtbetrag] in [Währung] nach erfolgreicher Abnahme des Programms.\n\nAbnahme:\nDie Abnahme erfolgt nach einer erfolgreichen Testphase, die alle in der Anforderungsbeschreibung festgelegten Kriterien erfüllt.\n\nMit diesem Auftrag soll ein leistungsfähiges und flexibles VBA-Programm geschaffen werden, das die Effizienz der Datenanalyse in Excel deutlich steigert. Vielen Dank für Ihre Mitarbeit und Ihr Engagement in diesem Projekt. Bei Rückfragen stehe ich gerne zur Verfügung."]
[{"$nulls":8},"Auftrag an den Entwickler für die Implementierung einer Fortschrittsvisualisierung in einer Excel-UserForm\n\nProjektziel:\nEntwickeln Sie eine innovative Lösung zur Visualisierung von Fortschrittstexten in einer Excel-UserForm, um eine interaktive und ansprechende Benutzererfahrung zu schaffen.\n\nSpezifikationen:\n\n    UserForm und Fortschrittsanzeige:\n        Die Lösung betrifft eine existierende UserForm in einem Excel-Projekt.\n        Integrieren Sie ein neues Anzeigeelement mit dem Namen \"FortschrittsVisualizer\", das für die Darstellung von Fortschrittstexten vorgesehen ist.\n\n    Dynamische Fortschrittsvisualisierung:\n        Implementieren Sie eine dynamische Fortschrittsvisualisierung für den Textinhalt im \"FortschrittsVisualizer\".\n        Der Fortschrittstext soll nicht nur angezeigt, sondern auch visuell hervorgehoben werden, um den Fortschritt auf einen Blick erkennbar zu machen.\n\n    Interaktive Funktionen:\n        Schaffen Sie interaktive Funktionen, die dem Benutzer erlauben, den Fortschrittstext zu steuern oder zu aktualisieren.\n        Berücksichtigen Sie Optionen für Animationen, Farbvariationen oder andere visuelle Effekte, um eine ansprechende Benutzererfahrung zu gewährleisten.\n\nLiefertermin:\nDie implementierte Lösung soll bis [Datum] geliefert werden.\n\nZahlungsbedingungen:\nDie Zahlung erfolgt nach erfolgreicher Integration der Fortschrittsvisualisierungs-Lösung in die UserForm.\n\nAbnahme:\nDie Abnahme erfolgt nach einer kurzen Testphase, in der die Fortschrittsvisualisierung korrekt funktioniert und die interaktiven Funktionen optimiert sind.\n\nHinweis an den Entwickler:\nBitte dokumentieren Sie die implementierte Lösung und erläutern Sie kurz die angewandte Methode zur Fortschrittsvisualisierung. Bei Rückfragen stehe ich gerne zur Verfügung."]
[{"$nulls":8},"Auftrag für die Erstellung einer Live-Datenvisualisierung:\n\nProjektziel:\nEntwickeln Sie eine Live-Datenvisualisierung in einer Excel-UserForm, die Echtzeitdaten auf ansprechende Weise darstellt. Die Visualisierung soll dynamisch aktualisiert werden und es dem Benutzer ermöglichen, verschiedene Datenansichten zu wählen.\n"]
[{"$nulls":8},"Auftrag für eine interaktive Drag-and-Drop-Funktionalität:\n\nProjektziel:\nIntegrieren Sie eine interaktive Drag-and-Drop-Funktionalität in eine Excel-UserForm. Benutzer sollen in der Lage sein, Elemente innerhalb der UserForm per Drag-and-Drop zu verschieben und zu organisieren. Die Lösung soll benutzerfreundlich und intuitiv sein."]
[{"$nulls":8},"Auftrag für eine Spracherkennung und -steuerung:\n\nProjektziel:\nImplementieren Sie eine Spracherkennungs- und -steuerungsfunktion in einer Excel-UserForm. Benutzer sollen in der Lage sein, Sprachbefehle zu verwenden, um Aktionen in der UserForm auszuführen. Die Lösung soll zuverlässig und einfach zu konfigurieren sein."]
[{"$nulls":8},"Auftrag für eine Bilderkennung und -verarbeitung:\n\nProjektziel:\nEntwickeln Sie eine Funktion zur Bilderkennung und -verarbeitung in einer Excel-UserForm. Benutzer sollen Bilder in die UserForm hochladen können, und die Lösung soll relevante Informationen extrahieren und anzeigen. Die Integration von Machine-Learning-Technologien wird bevorzugt."]
[{"$nulls":8},"Auftrag für eine Gamification-Funktion:\n\nProjektziel:\nImplementieren Sie eine Gamification-Funktion in einer Excel-UserForm, um die Benutzerinteraktion zu erhöhen. Dies könnte Punktesysteme, Herausforderungen oder Belohnungen für den Benutzer beinhalten. Die Lösung soll motivierend und einfach zu integrieren sein."]
[{"$nulls":8},"Auftrag für eine Augmented Reality (AR) Integration:\n\nProjektziel:\nIntegrieren Sie eine Augmented Reality (AR)-Funktion in eine Excel-UserForm. Benutzer sollen die Möglichkeit haben, ihre Umgebung durch die Kamera ihres Geräts zu sehen und virtuelle Elemente in Echtzeit über die UserForm einzublenden. Die Lösung soll benutzerfreundlich und ressourceneffizient sein."]
[{"$nulls":8},"Auftrag für eine Sentiment-Analyse und Emotionserkennung:\n\nProjektziel:\nImplementieren Sie eine Sentiment-Analyse und Emotionserkennung in einer Excel-UserForm. Benutzer sollen Texteingaben machen können, und die Lösung soll das Sentiment des Textes analysieren und möglicherweise auch Emotionen erkennen. Die Ergebnisse sollen visuell dargestellt werden."]
[{"$nulls":8},"Auftrag für eine Virtuelle Realität (VR)-Interaktion:\n\nProjektziel:\nIntegrieren Sie eine Virtuelle Realität (VR)-Interaktionsmöglichkeit in eine Excel-UserForm. Benutzer sollen in der Lage sein, mithilfe von VR-Brillen durch die UserForm zu navigieren und Daten in einem virtuellen Umfeld zu visualisieren. Die Lösung soll die VR-Geräte gängiger Hersteller unterstützen."]
[{"$nulls":8},"Auftrag für eine Zeitreise-Animation:\n\nProjektziel:\nEntwickeln Sie eine Zeitreise-Animation in einer Excel-UserForm. Benutzer sollen Daten oder Inhalte aus verschiedenen Zeitpunkten auswählen können, und die Lösung soll eine ansprechende visuelle Animation bieten, die den Übergang zwischen den Zeiträumen verdeutlicht."]
[{"$nulls":8},"Auftrag für eine Echtzeit-Datenvisualisierung:\n\nProjektziel:\nEntwickeln Sie eine Excel-UserForm, die Echtzeitdaten von externen Quellen empfängt und sie in ansprechenden Diagrammen und Grafiken visualisiert. Die Visualisierung soll automatisch aktualisiert werden, sobald neue Daten verfügbar sind."]
[{"$nulls":8},"Auftrag für eine Mehrbenutzer-Kollaborationsplattform:\n\nProjektziel:\nImplementieren Sie eine Kollaborationsplattform in Excel, die es mehreren Benutzern ermöglicht, gleichzeitig an einem Dokument zu arbeiten. Die Plattform sollte Echtzeit-Änderungen anzeigen und eine Chat-Funktionalität für die Zusammenarbeit bereitstellen."]
[{"$nulls":8},"Auftrag für eine Automatisierung von Berichtsprozessen:\n\nProjektziel:\nEntwickeln Sie eine Lösung, die es Benutzern ermöglicht, benutzerdefinierte Berichte in Excel zu erstellen, indem sie aus einer Auswahl von Datenquellen und Formatierungsoptionen auswählen. Die Lösung sollte den Berichtsprozess automatisieren und die Erstellung standardisierter Berichte vereinfachen."]
[{"$nulls":8},"Auftrag für eine automatische Dokumentenklassifizierung:\n\nProjektziel:\nImplementieren Sie eine Funktion in Excel, die es Benutzern ermöglicht, Dokumente hochzuladen, und automatisch ihre Art zu klassifizieren. Die Klassifizierung soll auf maschinellem Lernen basieren und dazu dienen, Dokumente in vordefinierte Kategorien einzuteilen."]
[{"$nulls":8},"Auftrag für eine Smart-Formularerkennung:\n\nProjektziel:\nEntwickeln Sie eine UserForm, die mithilfe von OCR (Optical Character Recognition) intelligente Formulare in Excel importieren kann. Die Lösung soll automatisch Daten aus den Formularen extrahieren und in Excel-Tabellen organisieren."]
[{"$nulls":8},"Auftrag für ein Personalmanagement-Dashboard:\n\nProjektziel:\nEntwickeln Sie ein umfassendes Personalmanagement-Dashboard in Excel. Das Dashboard sollte Funktionen für die Erfassung von Anwesenheitsdaten, Mitarbeiterleistungen, Urlaubsanfragen und andere HR-relevante Metriken bieten. Die Daten sollten visuell ansprechend präsentiert werden."]
[{"$nulls":8},"Auftrag für eine Automatisierte Budgetüberwachung:\n\nProjektziel:\nImplementieren Sie eine automatisierte Budgetüberwachungslösung in Excel. Die Benutzer sollen in der Lage sein, Budgets einzugeben, und die Lösung sollte Warnungen anzeigen, wenn Ausgaben die festgelegten Schwellenwerte überschreiten. Integrieren Sie visuelle Diagramme zur leichteren Verfolgung."]
[{"$nulls":8},"Auftrag für eine Kundenbeziehungsmanagement (CRM)-Integration:\n\nProjektziel:\nIntegrieren Sie eine CRM-Lösung in Excel, die es Benutzern ermöglicht, Kundeninformationen direkt aus Excel zu verwalten. Die Integration sollte auch die Verfolgung von Verkaufschancen, Kommunikationsverläufen und Kundengeschichte ermöglichen."]
[{"$nulls":8},"Auftrag für eine Risikomanagementanwendung:\n\nProjektziel:\nEntwickeln Sie eine Excel-Anwendung zur Identifizierung, Bewertung und Überwachung von Risiken in Geschäftsprojekten. Die Lösung sollte Risikofaktoren automatisch bewerten und Berichte über mögliche Auswirkungen auf die Projektziele generieren."]
[{"$nulls":8},"Auftrag für eine Zeiterfassungs- und Abrechnungsanwendung:\n\nProjektziel:\nEntwickeln Sie eine umfassende Zeiterfassungs- und Abrechnungsanwendung in Excel. Benutzer sollen ihre Arbeitszeiten erfassen können, und die Anwendung sollte automatisch Gehaltsabrechnungen erstellen, basierend auf den eingegebenen Stundensätzen und Arbeitszeiten."]

{"sheet":"Vorlage","index":11,"n_rows":16,"n_cols":1,"rows_kept":16,"hidden":true,"merged":[[0,0,0,2],[1,0,1,2],[2,0,2,2],[3,0,3,2],[4,0,4,2],[5,0,5,2],[6,0,6,2],[11,0,11,1],[12,0,12,2],[13,0,13,1],[14,0,14,1],[15,0,15,2]]}
["Sehr geehrte Damen und Herren von WUSBT|WASBT,"]
[]
["ich hoffe, diese Nachricht erreicht Sie wohlauf."]
["Im Anhang finden Sie eine vorläufige Bestellung Ihres Angebots bzw. optional des Warenkorbs, als PDF-Datei."]
[]
["Um unsere Bestellung zu vervollständigen und Ihr Angebot zu erhalten, finden Sie folgende Stammdaten:"]
[]
["- Kundenummer: (falls vorhanden):"]
["- Name (falls noch nicht bekannt):"]
["- Telefonnummer (falls noch nicht bekannt):"]
["- E-Mail-Adressen (falls abweichend):"]
[]
["Vielen Dank für Ihr Vertrauen, wir freuen uns auf Ihre Rückmeldung."]
[]
[]
["Mit freundlichen Grüßen,"]